Body Name,Body,Service Division Label,Service Division Code,Organisational Unit,Expenditure Category,Expenditure Code,CIPFA detailed expediture type,CIPFA detailed expediture code,Narrative,Date,Transaction number,Net Amount,Capital and Revenue,Supplier Name,Supplier ID,,
Chorley Borough Council,http://statistics.data.gov.uk/id/local-authority/30UE,Central Support Services,1009,Early Intervention,Works In Default,40199,Miscellaneous Expenses,5034,"Works to comply with a legal notice served (Public Health Act 1961, section 17)on the owner of ADDRESS REDACTED",20/12/2017,0126371,292.00,Revenue,3D Environmental Limited,76994,,
Chorley Borough Council,http://statistics.data.gov.uk/id/local-authority/30UE,Business Support,1095,Business Development & Growth,Miscellaneous Expenses,40200,Miscellaneous Expenses,5034,"reference 4103 Lining works - amendments to original work, as per drawing: Thermoplastic Screed on a concrete surface",13/12/2017,0126219,800.00,Revenue,A1 Streamline Road Markings LTD,21544,,
Chorley Borough Council,http://statistics.data.gov.uk/id/local-authority/30UE,Business Support,1095,Business Development & Growth,Miscellaneous Expenses,40200,Miscellaneous Expenses,5034,Carry out line market to Service Yard 3 as per revised quote reference 4063/1 EN4063/1 Thermoplastic Screed & Tack Coat ,20/12/2017,0126319,"1,120.00",Revenue,A1 Streamline Road Markings LTD,21544,,
Chorley Borough Council,http://statistics.data.gov.uk/id/local-authority/30UE,Democratic Represent and  Mgnt,1007,Policy & Governance,Furniture - Purchase,40012,"Equipment, Furniture & Materia",5023,75 x 6ft Trestle Tables 225 x folding chairs 563.75 Including Delivery & Collection Delivery All Seasons Leisure Centre Water St,22/12/2017,0125722,582.50,Revenue,Abbey Catering Equipment Hire Ltd,54191,,
Chorley Borough Council,http://statistics.data.gov.uk/id/local-authority/30UE,Democratic Represent and  Mgnt,1007,Policy & Governance,Exhibitions & Special Events,40158,Miscellaneous Expenses,5034,"Wrapped gifts for santa at Astley Hall - 4.50 range: Age � No of gifts One  140 Two  130 Three  210 Four  240 Five  220 Six",13/12/2017,0126218,"5,445.00",Revenue,Abbey Distributors,67669,,
Chorley Borough Council,http://statistics.data.gov.uk/id/local-authority/30UE,Democratic Represent and  Mgnt,1007,Policy & Governance,Other Fees,40212,Miscellaneous Expenses,5034,Bar fees for November and December 2017.,20/12/2017,0126353,390.00,Revenue,Ace Bars Ltd,54338,,
Chorley Borough Council,http://statistics.data.gov.uk/id/local-authority/30UE,Democratic Represent and  Mgnt,1007,Policy & Governance,Miscellaneous Expenses,40200,Miscellaneous Expenses,5034,Lighting provided for Astley Illuminated Saturday 25th November 2017. Quotation number 1179,06/12/2017,0125987,"5,620.00",Revenue,Active Audio Visual,21379,,
Chorley Borough Council,http://statistics.data.gov.uk/id/local-authority/30UE,Democratic Represent and  Mgnt,1007,Early Intervention,External Contractor - Trust or Charity,50008,Private Contractors,5042,Active Nation Management Fee Contract Year 12 Apr17-Mar-18,06/12/2017,0125947,"32,804.92",Revenue,Active Nation UK Ltd,17144,,
Chorley Borough Council,http://statistics.data.gov.uk/id/local-authority/30UE,Central Support Services,1009,Early Intervention,Sports Development Initiatives,40186,Miscellaneous Expenses,5034,Invoice for Clayton Active project 2017 240 Exercise coach 8 x 1.5 hrs @ 20 p/h 160 Memberships 8 x 2 month @ 30 p/m ,08/12/2017,0125962,550.00,Revenue,Active Nation UK Ltd,17144,,
Chorley Borough Council,http://statistics.data.gov.uk/id/local-authority/30UE,Unapportionable Central OHeads,1009,Policy & Governance,Burglar Alarms & Security Systems,20075,Fixtures and Fittings,5010,Maintenance of the access system charge for the period 28-11-2017 to 27-02-2018 Based on an annual charge of 2914.09 ,06/12/2017,0126012,728.46,Revenue,ADT Fire & Security,16645,,
Chorley Borough Council,http://statistics.data.gov.uk/id/local-authority/30UE,Unapportionable Central OHeads,1009,Policy & Governance,Burglar Alarms & Security Systems,20075,Fixtures and Fittings,5010,Maintenance of the CCTV system. Charge for the period 22.11.2017 to 21.11.2018 Based Union St Invoice number 36846420-10,06/12/2017,0126013,307.60,Revenue,ADT Fire & Security,16645,,
Chorley Borough Council,http://statistics.data.gov.uk/id/local-authority/30UE,Unapportionable Central OHeads,1009,Policy & Governance,Fire Alarms,20072,Fixtures and Fittings,5010,Maintenance of the extinguishing system. Charge for the period 07-11-2017 to 06-11-2018 Based Union St server room ,08/12/2017,0126014,548.80,Revenue,ADT Fire & Security,16645,,
Chorley Borough Council,http://statistics.data.gov.uk/id/local-authority/30UE,Unapportionable Central OHeads,1009,Business Development & Growth,General Repairs - Reactive,20004,Repairs Maintenance & Alts,5005,Reactive Blanket order from August 2017,20/12/2017,0126297,320.37,Revenue,ADT Fire & Security,16645,,
Chorley Borough Council,http://statistics.data.gov.uk/id/local-authority/30UE,Community Development,1097,Policy & Governance,Core Funding Grants,40133,Grants and Subscriptions,5031,Payment for second instalment of the provision of older peoples service from Age UK,20/12/2017,0126354,"5,000.00",Revenue,Age UK,21252,,
Chorley Borough Council,http://statistics.data.gov.uk/id/local-authority/30UE,Economic Development,1096,Business Development & Growth,Miscellaneous Expenses,40200,Miscellaneous Expenses,5034,For importing data into Evolutive as per spreadsheet Chorley access Data.xlsx,08/12/2017,0126065,"1,492.50",Revenue,Alcium Software LTD,39545,,
Chorley Borough Council,http://statistics.data.gov.uk/id/local-authority/30UE,Unapportionable Central OHeads,1009,Customer & Digital,Bank Charges,40151,Miscellaneous Expenses,5034,charges,13/12/2017,0126116,"1,561.41",Revenue,Allpay Net Ltd,17242,,
Chorley Borough Council,http://statistics.data.gov.uk/id/local-authority/30UE,Development Control,1091,Customer & Digital,Consultants` Fees,40077,Services,5027,Professional advice in respect of planning application 17/00715/OUTMAJ with particular regard to retail impact � excluding,01/12/2017,0125855,"4,000.00",Revenue,Alyn Nicholls,76491,,
Chorley Borough Council,http://statistics.data.gov.uk/id/local-authority/30UE,Democratic Represent and  Mgnt,1007,Policy & Governance,Exhibitions & Special Events,40158,Miscellaneous Expenses,5034,"Payment for Santa at Astley Hall. 20 per hour, 6 hours a day for 8 days.",20/12/2017,0126413,960.00,Revenue,Andrea Price Management,76897,,
Chorley Borough Council,http://statistics.data.gov.uk/id/local-authority/30UE,Corporate Management,1008,Chief Executive,Employee Related Insurance,18003,Indirect Employee Expenses,5002,Additional insurance premium  - coins Fine Art Policy,01/12/2017,0125874,310.63,Revenue,Aon UK Limited Accounts Division,76559,,
Chorley Borough Council,http://statistics.data.gov.uk/id/local-authority/30UE,Corporate Management,1008,Chief Executive,Employee Related Insurance,18003,Indirect Employee Expenses,5002,Property mid term adjustment temporary addition of waste bins,01/12/2017,0125875,275.00,Revenue,Aon UK Limited Accounts Division,76559,,
Chorley Borough Council,http://statistics.data.gov.uk/id/local-authority/30UE,Corporate Management,1008,Chief Executive,Employee Related Insurance,18003,Indirect Employee Expenses,5002,"Additional buildings premium St Johns Ambulance Hall, 259.42 , Victory Park 846.58",01/12/2017,0125876,"1,216.60",Revenue,Aon UK Limited Accounts Division,76559,,
Chorley Borough Council,http://statistics.data.gov.uk/id/local-authority/30UE,Democratic Represent and  Mgnt,1007,Business Development & Growth,Supplies-Grounds Maintenance,40025,"Equipment, Furniture & Materia",5023,Grading/seeding and drainage works at Ranglett`s Rec. Ground in accordance with Quote Q806377.,30/06/2017,0120431,"4,450.00",Revenue,AP Broome Landscapes,67257,,
Chorley Borough Council,http://statistics.data.gov.uk/id/local-authority/30UE,Democratic Represent and  Mgnt,1007,Business Development & Growth,Supplies-Grounds Maintenance,40025,"Equipment, Furniture & Materia",5023,Grading/seeding and drainage works at Rangletts Rec,22/12/2017,0123304,"3,500.00",Revenue,AP Broome Landscapes,67257,,
Chorley Borough Council,http://statistics.data.gov.uk/id/local-authority/30UE,Central Support Services,1009,Customer & Digital,Miscellaneous Expenses,40200,Miscellaneous Expenses,5034,"Neighbourhood Priority - improvements works to canal basin off Chorley Old Road Supply tree team for 2 days, take down deceas",06/12/2017,0125834,"2,275.36",Revenue,AP Broome Landscapes,67257,,
Chorley Borough Council,http://statistics.data.gov.uk/id/local-authority/30UE,Recreation & Sport,1037,Business Development & Growth,Miscellaneous Expenses,40200,Miscellaneous Expenses,5034,"Single Door and Side panel for Buttermere � Powder coated from our standard colour range � Euro profile dead lock � Double cylin",15/12/2017,0126132,"2,456.00",Revenue,Assa Abloy,76932,,
Chorley Borough Council,http://statistics.data.gov.uk/id/local-authority/30UE,Corporate Management,1008,Customer & Digital,Newsletter Production,40166,Miscellaneous Expenses,5034,2018 Waste Collection Calendars quotation :12934a x 30 sorts (Various quantities) Finished Size: A4 folded to 210 X 148mm,01/12/2017,0125297,"5,020.00",Revenue,B & D Print Services Ltd,76976,,
Chorley Borough Council,http://statistics.data.gov.uk/id/local-authority/30UE,Corporate Management,1008,Customer & Digital,Newsletter Production,40166,Miscellaneous Expenses,5034,Waste collection Calendar x 1 sort (reprint as previous) As per estimate 130527. Quantity ; 3000 PDF Artwork will be provided.,01/12/2017,0125846,483.00,Revenue,B & D Print Services Ltd,76976,,
Chorley Borough Council,http://statistics.data.gov.uk/id/local-authority/30UE,Homelessness,1075,Early Intervention,Laundry,40042,"Clothing, Uniforms and Laundry",5025,"Linen Service at Cotswold Supported Housing, Cotswold Rd, Chorley, PR73HW. To cover the period April 2017 - March 2018",01/12/2017,0125902,282.31,Revenue,Berendsen UK Ltd,20799,,
Chorley Borough Council,http://statistics.data.gov.uk/id/local-authority/30UE,Business Support,1095,Business Development & Growth,Grants To Other Organisations,40127,Grants and Subscriptions,5031,sib grant,08/12/2017,0125973,250.00,Revenue,NAME REDACTED,77080,,
Chorley Borough Council,http://statistics.data.gov.uk/id/local-authority/30UE,Homelessness,1075,Early Intervention,Agency Staff,13000,Direct Employee Expenses,5001,Supply of temp Support worker,20/12/2017,0125654,283.50,Revenue,BS Project Services Ltd,20328,,
Chorley Borough Council,http://statistics.data.gov.uk/id/local-authority/30UE,Homelessness,1075,Early Intervention,Agency Staff,13000,Direct Employee Expenses,5001,Supply of temp Support worker,01/12/2017,0125723,321.30,Revenue,BS Project Services Ltd,20328,,
Chorley Borough Council,http://statistics.data.gov.uk/id/local-authority/30UE,Housing Benefit Administration,1077,Customer & Digital,Computer Software-Additional,40102,Communication and Computing,5028,DWP LA DTA Sharing Programme: IT Costs for work completed to 31st March.,20/12/2017,0126208,"1,825.00",Revenue,Capita Business Services Ltd,17151,,
Chorley Borough Council,http://statistics.data.gov.uk/id/local-authority/30UE,Central Support Services,1009,Early Intervention,Community Develop Initiatives,40185,Miscellaneous Expenses,5034,"Supply cardiac science G5 automatic at 800 plus VAT Supply defibstore 3000 (stainless steel, heated locked and lit)- 590 plus",01/12/2017,0125656,"1,410.00",Revenue,Cardiac Science,60486,,
Chorley Borough Council,http://statistics.data.gov.uk/id/local-authority/30UE,Building Control,1090,Customer & Digital,Professional Fees,40063,Services,5027,Building Control Structural Calculation checking,08/12/2017,0125662,980.00,Revenue,Carr Faulkner Associates,17493,,
Chorley Borough Council,http://statistics.data.gov.uk/id/local-authority/30UE,Unapportionable Central OHeads,1009,Policy & Governance,Exhibitions & Special Events,40158,Miscellaneous Expenses,5034,The hire of 18 tables and 72 chairs,08/12/2017,0125991,915.00,Revenue,Childwall table and chair hire,77086,,
Chorley Borough Council,http://statistics.data.gov.uk/id/local-authority/30UE,Unapportionable Central OHeads,1009,Policy & Governance,Exhibitions & Special Events,40158,Miscellaneous Expenses,5034,Helter Skelter - Christmas Attraction,08/12/2017,0125909,"17,000.00",Revenue,Chippa Ltd,77075,,
Chorley Borough Council,http://statistics.data.gov.uk/id/local-authority/30UE,Parking Services,1066,Business Development & Growth,External Contractors,50008,Private Contractors,5042,Processing 074 - Provision of Notice Processing Services for period of 01.04.17 - 31.03.18 -Notice Processing Services Automated,20/12/2017,0126313,"1,242.57",Revenue,Chipside Ltd,22063,,
Chorley Borough Council,http://statistics.data.gov.uk/id/local-authority/30UE,Parking Services,1066,Business Development & Growth,External Contractors,50008,Private Contractors,5042,Processing 075 - Notice to Owner Postage and Packing (estimated) for period of 01.04.17 - 31.03.18,20/12/2017,0126313,65.52,Revenue,Chipside Ltd,22063,,
Chorley Borough Council,http://statistics.data.gov.uk/id/local-authority/30UE,Parking Services,1066,Business Development & Growth,External Contractors,50008,Private Contractors,5042,Processing 076 - Charge Certificate Postage & Packing (estimated) for period of 01.04.17 - 31.03.18,20/12/2017,0126313,23.56,Revenue,Chipside Ltd,22063,,
Chorley Borough Council,http://statistics.data.gov.uk/id/local-authority/30UE,Parking Services,1066,Business Development & Growth,External Contractors,50008,Private Contractors,5042,Processing 077 - Order for Recovery Postage & Packing (estimated) for period of 01.04.17 - 31.03.18,20/12/2017,0126313,3.95,Revenue,Chipside Ltd,22063,,
Chorley Borough Council,http://statistics.data.gov.uk/id/local-authority/30UE,Parking Services,1066,Business Development & Growth,External Contractors,50008,Private Contractors,5042,Processing 086 - Other Correspondence Postage & Packing (such as responses to Pre & Post NTO/CC/OofR etc). (estimated) ,20/12/2017,0126313,83.72,Revenue,Chipside Ltd,22063,,
Chorley Borough Council,http://statistics.data.gov.uk/id/local-authority/30UE,Regulatory Services,1048,Early Intervention,Taxi Testing & Vehicle Safety Report,40234,Services,5027,mot,06/12/2017,0125713,"1,042.15",Revenue,Chorley Autocare Ltd,17110,,
Chorley Borough Council,http://statistics.data.gov.uk/id/local-authority/30UE,Corporate Management,1008,Early Intervention,Taxi Testing & Vehicle Safety Report,40234,Services,5027,taxi test,06/12/2017,0125713,162.45,Revenue,Chorley Autocare Ltd,17110,,
Chorley Borough Council,http://statistics.data.gov.uk/id/local-authority/30UE,Corporate Management,1008,Early Intervention,Taxi Testing & Vehicle Safety Report,40234,Services,5027,mot,06/12/2017,0125996,"1,426.10",Revenue,Chorley Autocare Ltd,17110,,
Chorley Borough Council,http://statistics.data.gov.uk/id/local-authority/30UE,Corporate Management,1008,Early Intervention,Taxi Testing & Vehicle Safety Report,40234,Services,5027,taxi test,06/12/2017,0125996,222.30,Revenue,Chorley Autocare Ltd,17110,,
Chorley Borough Council,http://statistics.data.gov.uk/id/local-authority/30UE,Unapportionable Central OHeads,1009,Chief Executive,Refreshments,40036,Catering,5024,milk,20/12/2017,0126372,1.10,Revenue,Chorley BC Petty Cash,16301,,
Chorley Borough Council,http://statistics.data.gov.uk/id/local-authority/30UE,Unapportionable Central OHeads,1009,Chief Executive,Tools & Equipment - Purchase,40003,"Equipment, Furniture & Materia",5023,bonfire sundry,20/12/2017,0126372,12.50,Revenue,Chorley BC Petty Cash,16301,,
Chorley Borough Council,http://statistics.data.gov.uk/id/local-authority/30UE,Democratic Represent and  Mgnt,1007,Chief Executive,Use Of Transport - Mayoral Car,30015,Transport Recharges,5017,car wash,20/12/2017,0126372,5.00,Revenue,Chorley BC Petty Cash,16301,,
Chorley Borough Council,http://statistics.data.gov.uk/id/local-authority/30UE,Unapportionable Central OHeads,1009,Chief Executive,Refreshments,40036,Catering,5024,cordial,20/12/2017,0126372,1.25,Revenue,Chorley BC Petty Cash,16301,,
Chorley Borough Council,http://statistics.data.gov.uk/id/local-authority/30UE,Unapportionable Central OHeads,1009,Chief Executive,Refreshments,40036,Catering,5024,milk,20/12/2017,0126372,1.45,Revenue,Chorley BC Petty Cash,16301,,
Chorley Borough Council,http://statistics.data.gov.uk/id/local-authority/30UE,Democratic Represent and  Mgnt,1007,Chief Executive,Use Of Transport - Mayoral Car,30015,Transport Recharges,5017,car wash,20/12/2017,0126372,6.00,Revenue,Chorley BC Petty Cash,16301,,
Chorley Borough Council,http://statistics.data.gov.uk/id/local-authority/30UE,Central Support Services,1009,Chief Executive,Miscellaneous Expenses,40200,Miscellaneous Expenses,5034,party supplies,20/12/2017,0126372,16.46,Revenue,Chorley BC Petty Cash,16301,,
Chorley Borough Council,http://statistics.data.gov.uk/id/local-authority/30UE,Central Support Services,1009,Chief Executive,Miscellaneous Expenses,40200,Miscellaneous Expenses,5034,party supplies,20/12/2017,0126372,11.04,Revenue,Chorley BC Petty Cash,16301,,
Chorley Borough Council,http://statistics.data.gov.uk/id/local-authority/30UE,Unapportionable Central OHeads,1009,Chief Executive,Refreshments,40036,Catering,5024,juice,20/12/2017,0126372,3.75,Revenue,Chorley BC Petty Cash,16301,,
Chorley Borough Council,http://statistics.data.gov.uk/id/local-authority/30UE,Unapportionable Central OHeads,1009,Chief Executive,Refreshments,40036,Catering,5024,sugar,20/12/2017,0126372,0.98,Revenue,Chorley BC Petty Cash,16301,,
Chorley Borough Council,http://statistics.data.gov.uk/id/local-authority/30UE,Unapportionable Central OHeads,1009,Chief Executive,Refreshments,40036,Catering,5024,milk,20/12/2017,0126372,1.98,Revenue,Chorley BC Petty Cash,16301,,
Chorley Borough Council,http://statistics.data.gov.uk/id/local-authority/30UE,Unapportionable Central OHeads,1009,Chief Executive,Cleaning Materials,40019,"Equipment, Furniture & Materia",5023,batteries,20/12/2017,0126372,6.67,Revenue,Chorley BC Petty Cash,16301,,
Chorley Borough Council,http://statistics.data.gov.uk/id/local-authority/30UE,Unapportionable Central OHeads,1009,Chief Executive,Tools & Equipment - Purchase,40003,"Equipment, Furniture & Materia",5023,cable ties,20/12/2017,0126372,1.50,Revenue,Chorley BC Petty Cash,16301,,
Chorley Borough Council,http://statistics.data.gov.uk/id/local-authority/30UE,Democratic Represent and  Mgnt,1007,Chief Executive,Use Of Transport - Mayoral Car,30015,Transport Recharges,5017,car wash,20/12/2017,0126372,8.00,Revenue,Chorley BC Petty Cash,16301,,
Chorley Borough Council,http://statistics.data.gov.uk/id/local-authority/30UE,Central Support Services,1009,Chief Executive,Sports Development Initiatives,40186,Miscellaneous Expenses,5034,food,20/12/2017,0126372,16.59,Revenue,Chorley BC Petty Cash,16301,,
Chorley Borough Council,http://statistics.data.gov.uk/id/local-authority/30UE,Central Support Services,1009,Chief Executive,Sports Development Initiatives,40186,Miscellaneous Expenses,5034,food,20/12/2017,0126372,3.54,Revenue,Chorley BC Petty Cash,16301,,
Chorley Borough Council,http://statistics.data.gov.uk/id/local-authority/30UE,Democratic Represent and  Mgnt,1007,Chief Executive,Use Of Transport - Mayoral Car,30015,Transport Recharges,5017,car wash,20/12/2017,0126372,6.00,Revenue,Chorley BC Petty Cash,16301,,
Chorley Borough Council,http://statistics.data.gov.uk/id/local-authority/30UE,Democratic Represent and  Mgnt,1007,Chief Executive,Exhibitions,40176,Miscellaneous Expenses,5034,materials,20/12/2017,0126372,12.38,Revenue,Chorley BC Petty Cash,16301,,
Chorley Borough Council,http://statistics.data.gov.uk/id/local-authority/30UE,Unapportionable Central OHeads,1009,Chief Executive,Tools & Equipment - Purchase,40003,"Equipment, Furniture & Materia",5023,cable ties,20/12/2017,0126372,4.17,Revenue,Chorley BC Petty Cash,16301,,
Chorley Borough Council,http://statistics.data.gov.uk/id/local-authority/30UE,Unapportionable Central OHeads,1009,Chief Executive,Refreshments,40036,Catering,5024,coffee,20/12/2017,0126372,12.50,Revenue,Chorley BC Petty Cash,16301,,
Chorley Borough Council,http://statistics.data.gov.uk/id/local-authority/30UE,Central Support Services,1009,Chief Executive,Sports Development Initiatives,40186,Miscellaneous Expenses,5034,food,20/12/2017,0126372,0.96,Revenue,Chorley BC Petty Cash,16301,,
Chorley Borough Council,http://statistics.data.gov.uk/id/local-authority/30UE,Central Support Services,1009,Chief Executive,Sports Development Initiatives,40186,Miscellaneous Expenses,5034,food,20/12/2017,0126372,19.42,Revenue,Chorley BC Petty Cash,16301,,
Chorley Borough Council,http://statistics.data.gov.uk/id/local-authority/30UE,Central Support Services,1009,Chief Executive,Community Develop Initiatives,40185,Miscellaneous Expenses,5034,items,20/12/2017,0126372,8.29,Revenue,Chorley BC Petty Cash,16301,,
Chorley Borough Council,http://statistics.data.gov.uk/id/local-authority/30UE,Corporate Management,1008,Chief Executive,Miscellaneous Expenses,40200,Miscellaneous Expenses,5034,diary,20/12/2017,0126372,1.66,Revenue,Chorley BC Petty Cash,16301,,
Chorley Borough Council,http://statistics.data.gov.uk/id/local-authority/30UE,Democratic Represent and  Mgnt,1007,Chief Executive,Lifelong Learning Activities,40194,Miscellaneous Expenses,5034,fabric bupa,20/12/2017,0126372,13.03,Revenue,Chorley BC Petty Cash,16301,,
Chorley Borough Council,http://statistics.data.gov.uk/id/local-authority/30UE,Democratic Represent and  Mgnt,1007,Chief Executive,Lifelong Learning Activities,40194,Miscellaneous Expenses,5034,fabric bupa,20/12/2017,0126372,14.82,Revenue,Chorley BC Petty Cash,16301,,
Chorley Borough Council,http://statistics.data.gov.uk/id/local-authority/30UE,Democratic Represent and  Mgnt,1007,Chief Executive,Lifelong Learning Activities,40194,Miscellaneous Expenses,5034,xmas supplies,20/12/2017,0126372,9.73,Revenue,Chorley BC Petty Cash,16301,,
Chorley Borough Council,http://statistics.data.gov.uk/id/local-authority/30UE,Democratic Represent and  Mgnt,1007,Chief Executive,Lifelong Learning Activities,40194,Miscellaneous Expenses,5034,financial times,20/12/2017,0126372,4.50,Revenue,Chorley BC Petty Cash,16301,,
Chorley Borough Council,http://statistics.data.gov.uk/id/local-authority/30UE,Democratic Represent and  Mgnt,1007,Chief Executive,Refreshments,40036,Catering,5024,wine and oranges,20/12/2017,0126372,6.67,Revenue,Chorley BC Petty Cash,16301,,
Chorley Borough Council,http://statistics.data.gov.uk/id/local-authority/30UE,Democratic Represent and  Mgnt,1007,Chief Executive,Refreshments,40036,Catering,5024,wine and oranges,20/12/2017,0126372,11.67,Revenue,Chorley BC Petty Cash,16301,,
Chorley Borough Council,http://statistics.data.gov.uk/id/local-authority/30UE,Elections,1012,Chief Executive,Tools & Equipment - Purchase,40003,"Equipment, Furniture & Materia",5023,table,20/12/2017,0126372,9.58,Revenue,Chorley BC Petty Cash,16301,,
Chorley Borough Council,http://statistics.data.gov.uk/id/local-authority/30UE,Democratic Represent and  Mgnt,1007,Chief Executive,Tools & Equipment - Purchase,40003,"Equipment, Furniture & Materia",5023,juice,20/12/2017,0126372,2.50,Revenue,Chorley BC Petty Cash,16301,,
Chorley Borough Council,http://statistics.data.gov.uk/id/local-authority/30UE,Democratic Represent and  Mgnt,1007,Chief Executive,Tools & Equipment - Purchase,40003,"Equipment, Furniture & Materia",5023,crisps,20/12/2017,0126372,3.33,Revenue,Chorley BC Petty Cash,16301,,
Chorley Borough Council,http://statistics.data.gov.uk/id/local-authority/30UE,Democratic Represent and  Mgnt,1007,Chief Executive,Refreshments,40036,Catering,5024,wrapping paper,20/12/2017,0126372,6.67,Revenue,Chorley BC Petty Cash,16301,,
Chorley Borough Council,http://statistics.data.gov.uk/id/local-authority/30UE,Unapportionable Central OHeads,1009,Chief Executive,Exhibitions & Special Events,40158,Miscellaneous Expenses,5034,raffle tickets,20/12/2017,0126372,12.46,Revenue,Chorley BC Petty Cash,16301,,
Chorley Borough Council,http://statistics.data.gov.uk/id/local-authority/30UE,Democratic Represent and  Mgnt,1007,Chief Executive,Use Of Transport - Mayoral Car,30015,Transport Recharges,5017,car wash,20/12/2017,0126372,6.00,Revenue,Chorley BC Petty Cash,16301,,
Chorley Borough Council,http://statistics.data.gov.uk/id/local-authority/30UE,Central Support Services,1009,Chief Executive,Stationery,40050,"Printing, Stationery & General",5026,clip board,20/12/2017,0126372,6.24,Revenue,Chorley BC Petty Cash,16301,,
Chorley Borough Council,http://statistics.data.gov.uk/id/local-authority/30UE,Unapportionable Central OHeads,1009,Chief Executive,Exhibitions & Special Events,40158,Miscellaneous Expenses,5034,mp3,20/12/2017,0126372,8.33,Revenue,Chorley BC Petty Cash,16301,,
Chorley Borough Council,http://statistics.data.gov.uk/id/local-authority/30UE,Unapportionable Central OHeads,1009,Chief Executive,Tools & Equipment - Purchase,40003,"Equipment, Furniture & Materia",5023,tools,20/12/2017,0126372,16.63,Revenue,Chorley BC Petty Cash,16301,,
Chorley Borough Council,http://statistics.data.gov.uk/id/local-authority/30UE,Unapportionable Central OHeads,1009,Chief Executive,Refreshments,40036,Catering,5024,milk,20/12/2017,0126372,2.20,Revenue,Chorley BC Petty Cash,16301,,
Chorley Borough Council,http://statistics.data.gov.uk/id/local-authority/30UE,Central Support Services,1009,Chief Executive,Sports Development Initiatives,40186,Miscellaneous Expenses,5034,cafe visit,20/12/2017,0126372,13.50,Revenue,Chorley BC Petty Cash,16301,,
Chorley Borough Council,http://statistics.data.gov.uk/id/local-authority/30UE,Central Support Services,1009,Chief Executive,Sports Development Initiatives,40186,Miscellaneous Expenses,5034,items,20/12/2017,0126372,15.35,Revenue,Chorley BC Petty Cash,16301,,
Chorley Borough Council,http://statistics.data.gov.uk/id/local-authority/30UE,Central Support Services,1009,Chief Executive,Community Develop Initiatives,40185,Miscellaneous Expenses,5034,items,20/12/2017,0126372,3.33,Revenue,Chorley BC Petty Cash,16301,,
Chorley Borough Council,http://statistics.data.gov.uk/id/local-authority/30UE,Unapportionable Central OHeads,1009,Policy & Governance,Tools & Equipment - Purchase,40003,"Equipment, Furniture & Materia",5023,Bulbs for Town Hall as per quote 20721,01/12/2017,0125932,629.60,Revenue,Chorley Electrical Traders Ltd,16330,,
Chorley Borough Council,http://statistics.data.gov.uk/id/local-authority/30UE,Central Support Services,1009,Business Development & Growth,Planned Maintenance,20006,Repairs Maintenance & Alts,5005,Blanket order for PPM works,08/12/2017,0125633,673.20,Revenue,Chubb Electronic Sec Sys Ltd,16228,,
Chorley Borough Council,http://statistics.data.gov.uk/id/local-authority/30UE,Unapportionable Central OHeads,1009,Business Development & Growth,Planned Maintenance,20006,Repairs Maintenance & Alts,5005,Blanket order for PPM works,08/12/2017,0125657,393.60,Revenue,Chubb Electronic Sec Sys Ltd,16228,,
Chorley Borough Council,http://statistics.data.gov.uk/id/local-authority/30UE,Unapportionable Central OHeads,1009,Policy & Governance,Computer Software-Additional,40102,Communication and Computing,5028,Delivery of software & services as per quotation DEC0816 from NAME REDACTED include Purchase card module Implementation,15/12/2017,0126146,"8,598.00",Revenue,Civica UK Limited,17463,,
Chorley Borough Council,http://statistics.data.gov.uk/id/local-authority/30UE,Unapportionable Central OHeads,1009,Business Development & Growth,General Repairs - Reactive,20004,Repairs Maintenance & Alts,5005,Repairs to lift at Astley Hall - quote KD2017-26335-CLM00449-SQ2017-26335,20/12/2017,0126296,"2,285.00",Revenue,Classic Lifts Limited,20897,,
Chorley Borough Council,http://statistics.data.gov.uk/id/local-authority/30UE,Unapportionable Central OHeads,1009,Business Development & Growth,General Repairs - Reactive,20004,Repairs Maintenance & Alts,5005,2nd Blanket order for Reactive works for 2016.,20/12/2017,0126298,285.56,Revenue,Classic Lifts Limited,20897,,
Chorley Borough Council,http://statistics.data.gov.uk/id/local-authority/30UE,Business Support,1095,Business Development & Growth,Asset Maintenance Fund,20012,Repairs Maintenance & Alts,5005,carry out R&D survey at Royal Oak and Oak House as per quotation.,13/12/2017,0126180,"1,740.00",Revenue,CMC Asbestos Surveys Ltd,66621,,
Chorley Borough Council,http://statistics.data.gov.uk/id/local-authority/30UE,Capital,Capital,Business Development & Growth,Main Contractor,03007,Capital Expenditure,Capital,Phase 1 - 6 of Yarrow Valley Footpath Works as set out in the Condition of Contract Documentation.,08/12/2017,0126091,"6,997.12",Capital,Conservation Contracts North West,20520,,
Chorley Borough Council,http://statistics.data.gov.uk/id/local-authority/30UE,Capital,Capital,Customer & Digital,Consultants Fees,03025,Capital Expenditure,Capital,Preliminary Ecological Survey and Mitigation Recommendations for extension into Phase 2 of burial area within Chorley Cemetery,13/12/2017,0126211,949.44,Capital,Conservation Contracts North West,20520,,
Chorley Borough Council,http://statistics.data.gov.uk/id/local-authority/30UE,Unapportionable Central OHeads,1009,Policy & Governance,Asset Maintenance Fund,20012,Repairs Maintenance & Alts,5005,As per quotation Ref 4738 Upgarde lighting at rear of Union St Final spec to be confirmed by NAME REDACTED - re UV lamps,08/12/2017,0124797,596.50,Revenue,Corlett Electrical Eng Co Ltd,16271,,
Chorley Borough Council,http://statistics.data.gov.uk/id/local-authority/30UE,Unapportionable Central OHeads,1009,Business Development & Growth,Fixtures & Fittings - Repair/Mtnce,20028,Fixtures and Fittings,5010,Fix defibrillator to external wall of Town Hall as per quotation C 4805/R Please contact NAME REDACTED to agree a suitable date,13/12/2017,0125558,735.50,Revenue,Corlett Electrical Eng Co Ltd,16271,,
Chorley Borough Council,http://statistics.data.gov.uk/id/local-authority/30UE,Unapportionable Central OHeads,1009,Business Development & Growth,General Repairs - Reactive,20004,Repairs Maintenance & Alts,5005,Blanket Order for reactive repairs WEF 1/4/17,13/12/2017,0125950,281.80,Revenue,Corlett Electrical Eng Co Ltd,16271,,
Chorley Borough Council,http://statistics.data.gov.uk/id/local-authority/30UE,Unapportionable Central OHeads,1009,Business Development & Growth,General Repairs - Reactive,20004,Repairs Maintenance & Alts,5005,Blanket Order for reactive repairs WEF 1/4/17,13/12/2017,0126158,599.73,Revenue,Corlett Electrical Eng Co Ltd,16271,,
Chorley Borough Council,http://statistics.data.gov.uk/id/local-authority/30UE,Recreation & Sport,1037,Business Development & Growth,Gas,20014,Energy Costs,5006,buttermere cc,08/12/2017,0125727,605.94,Revenue,Corona Energy Retail 2 Ltd,67249,,
Chorley Borough Council,http://statistics.data.gov.uk/id/local-authority/30UE,Unapportionable Central OHeads,1009,Business Development & Growth,Gas,20014,Energy Costs,5006,union st,08/12/2017,0125772,347.92,Revenue,Corona Energy Retail 2 Ltd,67249,,
Chorley Borough Council,http://statistics.data.gov.uk/id/local-authority/30UE,Unapportionable Central OHeads,1009,Business Development & Growth,Gas,20014,Energy Costs,5006,union st,08/12/2017,0125773,380.28,Revenue,Corona Energy Retail 2 Ltd,67249,,
Chorley Borough Council,http://statistics.data.gov.uk/id/local-authority/30UE,Unapportionable Central OHeads,1009,Business Development & Growth,Gas,20014,Energy Costs,5006,union st,08/12/2017,0125774,598.39,Revenue,Corona Energy Retail 2 Ltd,67249,,
Chorley Borough Council,http://statistics.data.gov.uk/id/local-authority/30UE,Unapportionable Central OHeads,1009,Business Development & Growth,Gas,20014,Energy Costs,5006,town hall,08/12/2017,0125775,570.88,Revenue,Corona Energy Retail 2 Ltd,67249,,
Chorley Borough Council,http://statistics.data.gov.uk/id/local-authority/30UE,Democratic Represent and  Mgnt,1007,Business Development & Growth,Gas,20014,Energy Costs,5006,astley hall,08/12/2017,0125778,391.32,Revenue,Corona Energy Retail 2 Ltd,67249,,
Chorley Borough Council,http://statistics.data.gov.uk/id/local-authority/30UE,Unapportionable Central OHeads,1009,Business Development & Growth,Gas,20014,Energy Costs,5006,union st,08/12/2017,0125781,497.44,Revenue,Corona Energy Retail 2 Ltd,67249,,
Chorley Borough Council,http://statistics.data.gov.uk/id/local-authority/30UE,Unapportionable Central OHeads,1009,Business Development & Growth,Gas,20014,Energy Costs,5006,union st,08/12/2017,0125782,435.48,Revenue,Corona Energy Retail 2 Ltd,67249,,
Chorley Borough Council,http://statistics.data.gov.uk/id/local-authority/30UE,Unapportionable Central OHeads,1009,Business Development & Growth,Gas,20014,Energy Costs,5006,unino st,08/12/2017,0125783,353.57,Revenue,Corona Energy Retail 2 Ltd,67249,,
Chorley Borough Council,http://statistics.data.gov.uk/id/local-authority/30UE,Homelessness,1075,Business Development & Growth,Gas,20014,Energy Costs,5006,cotswold house,08/12/2017,0125786,657.27,Revenue,Corona Energy Retail 2 Ltd,67249,,
Chorley Borough Council,http://statistics.data.gov.uk/id/local-authority/30UE,Unapportionable Central OHeads,1009,Business Development & Growth,Gas,20014,Energy Costs,5006,union st,08/12/2017,0125997,344.17,Revenue,Corona Energy Retail 2 Ltd,67249,,
Chorley Borough Council,http://statistics.data.gov.uk/id/local-authority/30UE,Business Support,1095,Business Development & Growth,Miscellaneous Expenses,40200,Miscellaneous Expenses,5034,Access design - Preliminary design and detailed design work,08/12/2017,0122031,"1,732.50",Revenue,Croft Transport Solutions,76710,,
Chorley Borough Council,http://statistics.data.gov.uk/id/local-authority/30UE,Business Support,1095,Business Development & Growth,Miscellaneous Expenses,40200,Miscellaneous Expenses,5034,Design works for new access/junction & service road from Euxton Lane (Option 2B),06/12/2017,0124411,"1,200.00",Revenue,Croft Transport Solutions,76710,,
Chorley Borough Council,http://statistics.data.gov.uk/id/local-authority/30UE,Other Short Term Debtors,,Policy & Governance,Other Debtors,00098,Balance Sheet,Balance,Cycle scheme for MG,13/12/2017,0126155,426.67,Revenue,Cyclescheme Ltd,22390,,
Chorley Borough Council,http://statistics.data.gov.uk/id/local-authority/30UE,Business Support,1095,Business Development & Growth,Grants To Other Organisations,40127,Grants and Subscriptions,5031,sib grant,20/12/2017,0126368,250.00,Revenue,NAME REDACTED,77118,,
Chorley Borough Council,http://statistics.data.gov.uk/id/local-authority/30UE,Business Support,1095,Business Development & Growth,Grants To Other Organisations,40127,Grants and Subscriptions,5031,sib grant,15/12/2017,0126272,250.00,Revenue,NAME REDACTED,77099,,
Chorley Borough Council,http://statistics.data.gov.uk/id/local-authority/30UE,Other Short Term Creditors,,Policy & Governance,General Balances,00100,Balance Sheet,Balance,Return of Land Bond for Winter Sparkle event held at Astley Hall/Park on 5th November 2017.,01/12/2017,0125916,"5,000.00",Revenue,Derian House Childrens` Hospice,18881,,
Chorley Borough Council,http://statistics.data.gov.uk/id/local-authority/30UE,Central Support Services,1009,Customer & Digital,Mobile Voice and Data,40086,Communication and Computing,5028,Oct-17,06/12/2017,0125994,"2,148.94",Revenue,EE LIMITED,63366,,
Chorley Borough Council,http://statistics.data.gov.uk/id/local-authority/30UE,Central Support Services,1009,Customer & Digital,Mobile Voice and Data,40086,Communication and Computing,5028,Nov-17,06/12/2017,0125995,"2,137.92",Revenue,EE LIMITED,63366,,
Chorley Borough Council,http://statistics.data.gov.uk/id/local-authority/30UE,Unapportionable Central OHeads,1009,Business Development & Growth,General Repairs - Reactive,20004,Repairs Maintenance & Alts,5005,Reactive PRD Works WEF 1/4/17,13/12/2017,0125903,279.00,Revenue,Ellesmere Engineering Co Ltd,17520,,
Chorley Borough Council,http://statistics.data.gov.uk/id/local-authority/30UE,Unapportionable Central OHeads,1009,Business Development & Growth,General Repairs - Reactive,20004,Repairs Maintenance & Alts,5005,Reactive PRD Works WEF 1/4/17,13/12/2017,0126035,378.00,Revenue,Ellesmere Engineering Co Ltd,17520,,
Chorley Borough Council,http://statistics.data.gov.uk/id/local-authority/30UE,Homelessness,1075,Business Development & Growth,Fixtures & Fittings - Purchase,20027,Fixtures and Fittings,5010,Isolate drain and strip out existing Andrews Gas fired Water Heater.Deliver replacement Andrews Hi Flo Gas fired Water Heater,13/12/2017,0126179,"7,146.00",Revenue,Ellesmere Engineering Co Ltd,17520,,
Chorley Borough Council,http://statistics.data.gov.uk/id/local-authority/30UE,Corporate Management,1008,Early Intervention,Casual Salaries,10004,Direct Employee Expenses,5001,Temporary lead licensing officer for 2 days per week on a contract basis from beginning October to end of March,08/12/2017,0126120,"1,740.00",Revenue,Environmental Health On The Move Ltd,77090,,
Chorley Borough Council,http://statistics.data.gov.uk/id/local-authority/30UE,Corporate Management,1008,Early Intervention,Casual Salaries,10004,Direct Employee Expenses,5001,Temporary lead licensing officer for 2 days per week on a contract basis from beginning October to end of March,08/12/2017,0126121,"2,175.00",Revenue,Environmental Health On The Move Ltd,77090,,
Chorley Borough Council,http://statistics.data.gov.uk/id/local-authority/30UE,Capital,Capital,Business Development & Growth,Main Contractor,03007,Capital Expenditure,Capital,Delivery of the Pre-Construction Services Agreement and subsequent works in relation to the Market Walk Extension ,08/12/2017,0125983,"254,729.90",Capital,Eric Wright Construction Ltd,76464,,
Chorley Borough Council,http://statistics.data.gov.uk/id/local-authority/30UE,Capital,Capital,Business Development & Growth,Main Contractor,03007,Capital Expenditure,Capital,Primrose gardens Valuation Statements,08/12/2017,0126084,"314,917.56",Capital,Eric Wright Construction Ltd,76464,,
Chorley Borough Council,http://statistics.data.gov.uk/id/local-authority/30UE,Capital,Capital,Business Development & Growth,Grants,03002,Capital Expenditure,Capital,grant cont,08/12/2017,0126143,"44,000.00",Capital,Euxton Parish Council,16838,,
Chorley Borough Council,http://statistics.data.gov.uk/id/local-authority/30UE,Unapportionable Central OHeads,1009,Policy & Governance,Exhibitions & Special Events,40158,Miscellaneous Expenses,5034,Hire and delivery of four lighting towers for the bonfire and fireworks in Astley Park,08/12/2017,0126123,"1,240.00",Revenue,Eventbuddha,77025,,
Chorley Borough Council,http://statistics.data.gov.uk/id/local-authority/30UE,Service Management & Support,1009,Customer & Digital,Supplies-Grounds Maintenance,40025,"Equipment, Furniture & Materia",5023,3 Phormiums 1000 Daffodil bulbs 1500 Tete a Tete,13/12/2017,0126141,339.00,Revenue,Everglades Nurseries Ltd,20202,,
Chorley Borough Council,http://statistics.data.gov.uk/id/local-authority/30UE,Service Management & Support,1009,Customer & Digital,Supplies - Workshop,40246,"Equipment, Furniture & Materia",5023,for items as listed in invoice 125184,01/12/2017,0125928,404.05,Revenue,F R Sharrock Ltd,18091,,
Chorley Borough Council,http://statistics.data.gov.uk/id/local-authority/30UE,Service Management & Support,1009,Customer & Digital,Hire Of Vehicles and Plant,30028,Contrct Hire & Operating Lease,5018,extension of hire for the tractor and flail from 03/11/17 to 22/12/17,20/12/2017,0126369,"1,192.60",Revenue,F R Sharrock Ltd,18091,,
Chorley Borough Council,http://statistics.data.gov.uk/id/local-authority/30UE,Corporate Management,1008,Customer & Digital,Other Contributions,40145,Grants and Subscriptions,5031,ADDRESS REDACTED,20/12/2017,0126396,"1,980.00",Revenue,NAME REDACTED,74004,,
Chorley Borough Council,http://statistics.data.gov.uk/id/local-authority/30UE,Corporate Management,1008,Policy & Governance,Exhibitions & Special Events,40158,Miscellaneous Expenses,5034,Hire of the Christmas waiters street entertainment act on Saturday 9 December and the Jack�s of Frost street entertainment act,22/12/2017,0126408,"1,445.00",Revenue,Fools Paradise Ltd,17250,,
Chorley Borough Council,http://statistics.data.gov.uk/id/local-authority/30UE,Corporate Management,1008,Customer & Digital,Other Contributions,40145,Grants and Subscriptions,5031,ADDRESS REDACTED,20/12/2017,0126395,"1,980.00",Revenue,NAME REDACTED,73797,,
Chorley Borough Council,http://statistics.data.gov.uk/id/local-authority/30UE,Business Support,1095,Business Development & Growth,Gas,20014,Energy Costs,5006,gilibrand st,08/12/2017,0125853,257.08,Revenue,Gazprom Energy,56502,,
Chorley Borough Council,http://statistics.data.gov.uk/id/local-authority/30UE,Corporate Management,1008,Customer & Digital,Other Contributions,40145,Grants and Subscriptions,5031,ADDRESS REDACTED,20/12/2017,0126373,"1,980.00",Revenue,NAME REDACTED,73740,,
Chorley Borough Council,http://statistics.data.gov.uk/id/local-authority/30UE,Housing Strategy,1069,Business Development & Growth,Professional Fees,40063,Services,5027,"Resources / fees  from G.L Hearn for planning appeal for Land off Pear Tree Lane, Euxton",15/12/2017,0125938,"20,057.00",Revenue,GL Hearn,22437,,
Chorley Borough Council,http://statistics.data.gov.uk/id/local-authority/30UE,Central Support Services,1009,Early Intervention,Vandalism Repairs,20005,Repairs Maintenance & Alts,5005,Contract for Graffiti removal 2017,22/12/2017,0126360,405.00,Revenue,Graffiti Away,76316,,
Chorley Borough Council,http://statistics.data.gov.uk/id/local-authority/30UE,Corporate Management,1008,Policy & Governance,External Audit,40064,Services,5027,2017/18 Main External Audit Fee,20/12/2017,0126320,"11,314.00",Revenue,Grant Thornton UK LLP,57322,,
Chorley Borough Council,http://statistics.data.gov.uk/id/local-authority/30UE,Elections,1012,Policy & Governance,Service Fees,40056,Services,5027,Hera for use with Electoral Registration Canvass 2017,01/12/2017,0125896,"4,602.85",Revenue,Halarose Limited,18133,,
Chorley Borough Council,http://statistics.data.gov.uk/id/local-authority/30UE,Central Support Services,1009,Early Intervention,Miscellaneous Expenses,40200,Miscellaneous Expenses,5034,contribution,06/12/2017,0126006,"2,000.00",Revenue,Hoghton Parish Council,16188,,
Chorley Borough Council,http://statistics.data.gov.uk/id/local-authority/30UE,Community Development,1097,Policy & Governance,Core Funding Grants,40133,Grants and Subscriptions,5031,Payment for second instalment of first year contract 17/18,01/12/2017,0125913,"11,000.00",Revenue,Home-Start Central Lancashire Ltd,20585,,
Chorley Borough Council,http://statistics.data.gov.uk/id/local-authority/30UE,Capital,Capital,Business Development & Growth,Consultants Fees,03025,Capital Expenditure,Capital,For provision of project management/employers agent services in accordance with tender dated 30.9.2016.,08/12/2017,0126060,"2,075.00",Capital,Identity Consult Ltd,76426,,
Chorley Borough Council,http://statistics.data.gov.uk/id/local-authority/30UE,Community Development,1097,Business Development & Growth,Rent/Hire Of Premises,20017,Premises Rents,5007,Insurance for 35/37 market st,08/12/2017,0125823,775.45,Revenue,J R Keys,17124,,
Chorley Borough Council,http://statistics.data.gov.uk/id/local-authority/30UE,Business Support,1095,Business Development & Growth,Refuse Collection,20037,Cleaning and Domestic Supplies,5012,"Waste Compactor Rental Services @ 270.0 per month April 17 - March 18",06/12/2017,0125946,270.00,Revenue,J&H Rentals Limited,70699,,
Chorley Borough Council,http://statistics.data.gov.uk/id/local-authority/30UE,Unapportionable Central OHeads,1009,Customer & Digital,Furniture - Purchase,40012,"Equipment, Furniture & Materia",5023,AS14 1400mmx800mm desk in Maple including delivery and setup,06/12/2017,0125911,756.00,Revenue,Jenkinsons Office Supplies,57466,,
Chorley Borough Council,http://statistics.data.gov.uk/id/local-authority/30UE,Unapportionable Central OHeads,1009,Customer & Digital,Furniture - Purchase,40012,"Equipment, Furniture & Materia",5023,HBCM Cable Basket including installation onto desks,06/12/2017,0125911,298.05,Revenue,Jenkinsons Office Supplies,57466,,
Chorley Borough Council,http://statistics.data.gov.uk/id/local-authority/30UE,Unapportionable Central OHeads,1009,Customer & Digital,Furniture - Purchase,40012,"Equipment, Furniture & Materia",5023,OC97HA/LP Orthopaedic Chair with Lumbar in Havana Fabric (black),06/12/2017,0125911,"2,500.05",Revenue,Jenkinsons Office Supplies,57466,,
Chorley Borough Council,http://statistics.data.gov.uk/id/local-authority/30UE,Service Management & Support,1009,Customer & Digital,Supplies-Grounds Maintenance,40025,"Equipment, Furniture & Materia",5023,30 lengths of timber @ 3.6m x 75mm x 75mm,15/12/2017,0126016,125.70,Revenue,John H Mayor & Sons Ltd,16635,,
Chorley Borough Council,http://statistics.data.gov.uk/id/local-authority/30UE,Service Management & Support,1009,Customer & Digital,Supplies-Grounds Maintenance,40025,"Equipment, Furniture & Materia",5023,60 @ 3.6m x 150mm x 50mm green timber,15/12/2017,0126016,453.60,Revenue,John H Mayor & Sons Ltd,16635,,
Chorley Borough Council,http://statistics.data.gov.uk/id/local-authority/30UE,Parking Services,1066,Business Development & Growth,Tools & Equipment - Purchase,40003,"Equipment, Furniture & Materia",5023,"Please supply 6`4 standard Apex shed and build on site on Monday 27th November 2017 at Service Yard 3, Clifford St, Chorley.",08/12/2017,0126037,410.25,Revenue,John H Mayor & Sons Ltd,16635,,
Chorley Borough Council,http://statistics.data.gov.uk/id/local-authority/30UE,Development Control,1091,Customer & Digital,Statutory Notices,40160,Miscellaneous Expenses,5034,Planning Public Notices to appear in the Chorley Guardian April 2017 to March 2018,01/12/2017,0125883,340.86,Revenue,Johnston Publishing Ltd,20072,,
Chorley Borough Council,http://statistics.data.gov.uk/id/local-authority/30UE,Development Control,1091,Customer & Digital,Statutory Notices,40160,Miscellaneous Expenses,5034,Planning Public Notices to appear in the Chorley Guardian April 2017 to March 2018,15/12/2017,0126236,393.30,Revenue,Johnston Publishing Ltd,20072,,
Chorley Borough Council,http://statistics.data.gov.uk/id/local-authority/30UE,Business Support,1095,Business Development & Growth,Grants To Other Organisations,40127,Grants and Subscriptions,5031,sib grant,13/12/2017,0125733,250.00,Revenue,NAME REDACTED,77060,,
Chorley Borough Council,http://statistics.data.gov.uk/id/local-authority/30UE,Business Support,1095,Business Development & Growth,Grants To Other Organisations,40127,Grants and Subscriptions,5031,sib grant,08/12/2017,0125972,250.00,Revenue,NAME REDACTED,77081,,
Chorley Borough Council,http://statistics.data.gov.uk/id/local-authority/30UE,Central Support Services,1009,Early Intervention,Pest Control,20039,Cleaning and Domestic Supplies,5012,20 bags of Bromabait -  SAKBWPP18K - 54.95 each,13/12/2017,0125647,900.00,Revenue,Killgerm Chemicals Ltd,16879,,
Chorley Borough Council,http://statistics.data.gov.uk/id/local-authority/30UE,Corporate Management,1008,Policy & Governance,Other Contributions,40145,Grants and Subscriptions,5031,Payment for shared service between LCC and CBC for extended period,06/12/2017,0125691,"30,006.55",Revenue,Lancashire County Council,17758,,
Chorley Borough Council,http://statistics.data.gov.uk/id/local-authority/30UE,Corporate Management,1008,Policy & Governance,Other Contributions,40145,Grants and Subscriptions,5031,For the 24A/109A/6A service an additional amount is required,06/12/2017,0125755,"30,536.38",Revenue,Lancashire County Council,17758,,
Chorley Borough Council,http://statistics.data.gov.uk/id/local-authority/30UE,Capital,Capital,Early Intervention,Grants,03002,Capital Expenditure,Capital,ADDRESS REDACTED,20/12/2017,0126415,"2,799.00",Capital,Lancashire County Council,17758,,
Chorley Borough Council,http://statistics.data.gov.uk/id/local-authority/30UE,Capital,Capital,Early Intervention,Grants,03002,Capital Expenditure,Capital,ADDRESS REDACTED,20/12/2017,0126418,"1,544.93",Capital,Lancashire County Council,17758,,
Chorley Borough Council,http://statistics.data.gov.uk/id/local-authority/30UE,Corporate Management,1008,Policy & Governance,Other Fees,40212,Miscellaneous Expenses,5034,PO for next 4 weekly period,08/12/2017,0125867,917.97,Revenue,Lancashire Fayre,62967,,
Chorley Borough Council,http://statistics.data.gov.uk/id/local-authority/30UE,Corporate Management,1008,Customer & Digital,Clinical Waste Collection,50007,Private Contractors,5042,"Disposal of clinical waste from Chorley household. April 2017 to March 2018.  Yellow bag collections, approx. 550 per month.",22/12/2017,0126380,806.74,Revenue,Lancashire Teaching Hospitals NHS FT,19003,,
Chorley Borough Council,http://statistics.data.gov.uk/id/local-authority/30UE,Development Control,1091,Policy & Governance,Legal Fees,40171,Miscellaneous Expenses,5034,Counsel fees for reviewing officer report relating to application for a certificate of lawfulness for use of land as a microlight airfield,08/12/2017,0126142,600.00,Revenue,Landmark Chambers,56730,,
Chorley Borough Council,http://statistics.data.gov.uk/id/local-authority/30UE,Corporate Management,1008,Policy & Governance,Car Leasing Payment,14100,Direct Employee Expenses,5001,Car Lease,20/12/2017,0126355,"2,756.08",Revenue,LeasePlan UK Ltd T/A Automotive Leasing,65197,,
Chorley Borough Council,http://statistics.data.gov.uk/id/local-authority/30UE,Corporate Management,1008,Policy & Governance,Car Leasing Payment,14100,Direct Employee Expenses,5001,Car Lease,20/12/2017,0126355,244.66,Revenue,LeasePlan UK Ltd T/A Automotive Leasing,65197,,
Chorley Borough Council,http://statistics.data.gov.uk/id/local-authority/30UE,Business Support,1095,Business Development & Growth,Grants To Other Organisations,40127,Grants and Subscriptions,5031,sib grant,06/12/2017,0125974,250.00,Revenue,NAME REDACTED,77065,,
Chorley Borough Council,http://statistics.data.gov.uk/id/local-authority/30UE,Economic Development,1096,Business Development & Growth,Promotional Expenses,40159,Miscellaneous Expenses,5034,to supply full page advert in the Let�s Go Guide promoting Chorley Markets,20/12/2017,0126433,300.00,Revenue,Let`s Go Media Ltd,77105,,
Chorley Borough Council,http://statistics.data.gov.uk/id/local-authority/30UE,Service Management & Support,1009,Customer & Digital,Supplies-Grounds Maintenance,40025,"Equipment, Furniture & Materia",5023,4 x Heskin Memorial Benches,01/12/2017,0125863,"2,560.00",Revenue,Lost Art Limited,22117,,
Chorley Borough Council,http://statistics.data.gov.uk/id/local-authority/30UE,Capital,Capital,Business Development & Growth,Equipment,03014,Capital Expenditure,Capital,"Tatton Rec Ground 128m2 sand filled carpet to overlay areas of rubber tiles, cut into external wetpour edge colour Standard Green",20/12/2017,0126187,"5,911.00",Capital,Ludus Leisure Limited,71508,,
Chorley Borough Council,http://statistics.data.gov.uk/id/local-authority/30UE,Service Management & Support,1009,Customer & Digital,Grounds Maintenance Contractor,20043,Grounds Maintenance Costs,5013,for tree works carried out 1/11/17 - 30/11/17 as listed in Invoice 25,13/12/2017,0126201,"3,201.08",Revenue,M J Walker,62044,,
Chorley Borough Council,http://statistics.data.gov.uk/id/local-authority/30UE,Capital,Capital,Early Intervention,Grants,03002,Capital Expenditure,Capital,ADDRESS REDACTED,20/12/2017,0126419,"3,935.00",Capital,M.J Park Building Contractors,20367,,
Chorley Borough Council,http://statistics.data.gov.uk/id/local-authority/30UE,Capital,Capital,Early Intervention,Grants,03002,Capital Expenditure,Capital,ADDRESS REDACTED,20/12/2017,0126420,"4,525.00",Capital,M.J Park Building Contractors,20367,,
Chorley Borough Council,http://statistics.data.gov.uk/id/local-authority/30UE,Corporate Management,1008,Customer & Digital,Other Contributions,40145,Grants and Subscriptions,5031,ADDRESS REDACTED,06/12/2017,0126007,"4,706.00",Revenue,NAME REDACTED,73841,,
Chorley Borough Council,http://statistics.data.gov.uk/id/local-authority/30UE,Central Support Services,1009,Policy & Governance,Agency Staff,13000,Direct Employee Expenses,5001,AGENCY COST,06/12/2017,0126005,"1,558.82",Revenue,Matrix SCM Ltd,22128,,
Chorley Borough Council,http://statistics.data.gov.uk/id/local-authority/30UE,Central Support Services,1009,Policy & Governance,Agency Staff,13000,Direct Employee Expenses,5001,AGENCY COST,06/12/2017,0126005,533.60,Revenue,Matrix SCM Ltd,22128,,
Chorley Borough Council,http://statistics.data.gov.uk/id/local-authority/30UE,Central Support Services,1009,Policy & Governance,Agency Staff,13000,Direct Employee Expenses,5001,AGENCY COST,06/12/2017,0126005,532.18,Revenue,Matrix SCM Ltd,22128,,
Chorley Borough Council,http://statistics.data.gov.uk/id/local-authority/30UE,Unapportionable Central OHeads,1009,Policy & Governance,Agency Staff,13000,Direct Employee Expenses,5001,AGENCY COST,06/12/2017,0126005,350.72,Revenue,Matrix SCM Ltd,22128,,
Chorley Borough Council,http://statistics.data.gov.uk/id/local-authority/30UE,Central Support Services,1009,Policy & Governance,Agency Staff,13000,Direct Employee Expenses,5001,AGENCY COST,15/12/2017,0126275,779.41,Revenue,Matrix SCM Ltd,22128,,
Chorley Borough Council,http://statistics.data.gov.uk/id/local-authority/30UE,Central Support Services,1009,Policy & Governance,Agency Staff,13000,Direct Employee Expenses,5001,AGENCY COST,15/12/2017,0126275,"1,101.98",Revenue,Matrix SCM Ltd,22128,,
Chorley Borough Council,http://statistics.data.gov.uk/id/local-authority/30UE,Unapportionable Central OHeads,1009,Policy & Governance,Agency Staff,13000,Direct Employee Expenses,5001,AGENCY COST,15/12/2017,0126275,449.65,Revenue,Matrix SCM Ltd,22128,,
Chorley Borough Council,http://statistics.data.gov.uk/id/local-authority/30UE,Central Support Services,1009,Policy & Governance,Agency Staff,13000,Direct Employee Expenses,5001,AGENCY COST,15/12/2017,0126276,779.41,Revenue,Matrix SCM Ltd,22128,,
Chorley Borough Council,http://statistics.data.gov.uk/id/local-authority/30UE,Central Support Services,1009,Policy & Governance,Agency Staff,13000,Direct Employee Expenses,5001,AGENCY COST,15/12/2017,0126276,960.08,Revenue,Matrix SCM Ltd,22128,,
Chorley Borough Council,http://statistics.data.gov.uk/id/local-authority/30UE,Unapportionable Central OHeads,1009,Policy & Governance,Agency Staff,13000,Direct Employee Expenses,5001,AGENCY COST,15/12/2017,0126276,392.69,Revenue,Matrix SCM Ltd,22128,,
Chorley Borough Council,http://statistics.data.gov.uk/id/local-authority/30UE,Unapportionable Central OHeads,1009,Business Development & Growth,Planned Maintenance,20006,Repairs Maintenance & Alts,5005,Annual order for monitoring starting with Apr-June 2017,13/12/2017,0125988,"1,803.75",Revenue,Maxigiene Environmental Services Ltd,67160,,
Chorley Borough Council,http://statistics.data.gov.uk/id/local-authority/30UE,Capital,Capital,Early Intervention,Grants,03002,Capital Expenditure,Capital,ADDRESS REDACTED,20/12/2017,0126421,"3,298.31",Capital,Mint Northwest Ltd,65607,,
Chorley Borough Council,http://statistics.data.gov.uk/id/local-authority/30UE,Capital,Capital,Early Intervention,Grants,03002,Capital Expenditure,Capital,ADDRESS REDACTED,20/12/2017,0126422,"4,042.90",Capital,Mint Northwest Ltd,65607,,
Chorley Borough Council,http://statistics.data.gov.uk/id/local-authority/30UE,Capital,Capital,Early Intervention,Grants,03002,Capital Expenditure,Capital,ADDRESS REDACTED,20/12/2017,0126425,"3,303.66",Capital,Mint Northwest Ltd,65607,,
Chorley Borough Council,http://statistics.data.gov.uk/id/local-authority/30UE,Capital,Capital,Early Intervention,Grants,03002,Capital Expenditure,Capital,ADDRESS REDACTED,20/12/2017,0126427,"3,422.88",Capital,Mint Northwest Ltd,65607,,
Chorley Borough Council,http://statistics.data.gov.uk/id/local-authority/30UE,Private Sector HSG Renewal,1073,Early Intervention,External Contractor,40198,Miscellaneous Expenses,5034,ADDRESS REDACTED,08/12/2017,0126097,250.00,Revenue,Mobility Care Services,70841,,
Chorley Borough Council,http://statistics.data.gov.uk/id/local-authority/30UE,Private Sector HSG Renewal,1073,Early Intervention,External Contractor,40198,Miscellaneous Expenses,5034,ADDRESS REDACTED,08/12/2017,0126098,320.00,Revenue,Mobility Care Services,70841,,
Chorley Borough Council,http://statistics.data.gov.uk/id/local-authority/30UE,Private Sector HSG Renewal,1073,Early Intervention,External Contractor,40198,Miscellaneous Expenses,5034,ADDRESS REDACTED,08/12/2017,0126099,320.00,Revenue,Mobility Care Services,70841,,
Chorley Borough Council,http://statistics.data.gov.uk/id/local-authority/30UE,Private Sector HSG Renewal,1073,Early Intervention,External Contractor,40198,Miscellaneous Expenses,5034,ADDRESS REDACTED,08/12/2017,0126100,320.00,Revenue,Mobility Care Services,70841,,
Chorley Borough Council,http://statistics.data.gov.uk/id/local-authority/30UE,Private Sector HSG Renewal,1073,Early Intervention,External Contractor,40198,Miscellaneous Expenses,5034,ADDRESS REDACTED,08/12/2017,0126101,375.00,Revenue,Mobility Care Services,70841,,
Chorley Borough Council,http://statistics.data.gov.uk/id/local-authority/30UE,Private Sector HSG Renewal,1073,Early Intervention,External Contractor,40198,Miscellaneous Expenses,5034,ADDRESS REDACTED,08/12/2017,0126102,"1,200.00",Revenue,Mobility Care Services,70841,,
Chorley Borough Council,http://statistics.data.gov.uk/id/local-authority/30UE,Capital,Capital,Business Development & Growth,Main Contractor,03007,Capital Expenditure,Capital,Drainage works to Astley Playing Fields / Showground in accordance with quotation submitted May 2017.,06/12/2017,0125757,"7,936.00",Capital,NAME REDACTED,72236,,
Chorley Borough Council,http://statistics.data.gov.uk/id/local-authority/30UE,Corporate Management,1008,Customer & Digital,Other Contributions,40145,Grants and Subscriptions,5031,ADDRESS REDACTED,20/12/2017,0126397,"5,000.00",Revenue,NAME REDACTED,77119,,
Chorley Borough Council,http://statistics.data.gov.uk/id/local-authority/30UE,Capital,Capital,Policy & Governance,Grants,03002,Capital Expenditure,Capital,reimbursement,20/12/2017,0126273,300.00,Capital,NAME REDACTED,77095,,
Chorley Borough Council,http://statistics.data.gov.uk/id/local-authority/30UE,Private Sector HSG Renewal,1073,Early Intervention,External Contractor,40198,Miscellaneous Expenses,5034,Provision of Energy Switching Support service (funded by LCC IHIS service) in November 2017,08/12/2017,0125989,981.00,Revenue,NAME REDACTED,65606,,
Chorley Borough Council,http://statistics.data.gov.uk/id/local-authority/30UE,Unapportionable Central OHeads,1009,Policy & Governance,Exhibitions & Special Events,40158,Miscellaneous Expenses,5034,donation,20/12/2017,0126283,"2,000.00",Revenue,NAME REDACTED,63086,,
Chorley Borough Council,http://statistics.data.gov.uk/id/local-authority/30UE,Service Management & Support,1009,Customer & Digital,Vehicle Maintenance,30045,Direct Transport Costs,5016,for regrind of Ransome parkway cylinders and supply of bearings as listed in invoice 1441,08/12/2017,0126079,328.10,Revenue,MW Grass Machinery,21616,,
Chorley Borough Council,http://statistics.data.gov.uk/id/local-authority/30UE,Service Management & Support,1009,Customer & Digital,Vehicle Maintenance,30045,Direct Transport Costs,5016,for regrind of Ransome parkway cylinders and supply of bearings as listed in invoice 1442,08/12/2017,0126080,328.10,Revenue,MW Grass Machinery,21616,,
Chorley Borough Council,http://statistics.data.gov.uk/id/local-authority/30UE,Democratic Represent and  Mgnt,1007,Business Development & Growth,External Contractor,40198,Miscellaneous Expenses,5034,14 yard skip for Rangletts Allotments on Friday 24th November. Pick up Monday 27th Nov. 109.26 for collection and transport,13/12/2017,0126152,376.79,Revenue,Neales Waste Management,17583,,
Chorley Borough Council,http://statistics.data.gov.uk/id/local-authority/30UE,Business Support,1095,Business Development & Growth,Refuse Collection,20037,Cleaning and Domestic Supplies,5012,Market Walk Yard 1 - General Waste compacted - 35 Yard roll on/roll off skip from compactor @64.83 per exchange estimated ,20/12/2017,0126206,129.66,Revenue,Neales Waste Management,17583,,
Chorley Borough Council,http://statistics.data.gov.uk/id/local-authority/30UE,Business Support,1095,Business Development & Growth,Refuse Collection,20037,Cleaning and Domestic Supplies,5012,Market Walk Yard 1 general waste compacted - 35 yard roll on/roll off skip from compactor disposal costs per tonne ,20/12/2017,0126206,"2,061.90",Revenue,Neales Waste Management,17583,,
Chorley Borough Council,http://statistics.data.gov.uk/id/local-authority/30UE,Elections,1012,Chief Executive,Petrol,30005,Direct Transport Costs,5016,top up,06/12/2017,0125993,500.00,Revenue,Neopost Ltd RCB Credifon A/C,20009,,
Chorley Borough Council,http://statistics.data.gov.uk/id/local-authority/30UE,Development Control,1091,Customer & Digital,Miscellaneous Expenses,40200,Miscellaneous Expenses,5034,grant,15/12/2017,0126287,"207,578.11",Revenue,Next Big Thing Developments,77044,,
Chorley Borough Council,http://statistics.data.gov.uk/id/local-authority/30UE,Unapportionable Central OHeads,1009,Chief Executive,Stationery,40050,"Printing, Stationery & General",5026,Newspapers for Union Street offices April 2017 - March 2018,13/12/2017,0125940,252.85,Revenue,Nooze `n` Booze,19382,,
Chorley Borough Council,http://statistics.data.gov.uk/id/local-authority/30UE,Service Management & Support,1009,Customer & Digital,Vehicle Maintenance,30045,Direct Transport Costs,5016,"Please supply 1 piece belly brush for our Johnson large mechanical sweeper, RV14 DVB.",13/12/2017,0126198,261.14,Revenue,Northern Municipal Spares Ltd,17752,,
Chorley Borough Council,http://statistics.data.gov.uk/id/local-authority/30UE,Democratic Represent and  Mgnt,1007,Business Development & Growth,Electricity,20013,Energy Costs,5006,Harpers lane rec,08/12/2017,0125735,3.22,Revenue,Npower Commercial Gas,16814,,
Chorley Borough Council,http://statistics.data.gov.uk/id/local-authority/30UE,Democratic Represent and  Mgnt,1007,Business Development & Growth,Electricity,20013,Energy Costs,5006,tatton rec,08/12/2017,0125735,10.88,Revenue,Npower Commercial Gas,16814,,
Chorley Borough Council,http://statistics.data.gov.uk/id/local-authority/30UE,Service Management & Support,1009,Business Development & Growth,Electricity,20013,Energy Costs,5006,gillet playing fields,08/12/2017,0125735,4.39,Revenue,Npower Commercial Gas,16814,,
Chorley Borough Council,http://statistics.data.gov.uk/id/local-authority/30UE,Democratic Represent and  Mgnt,1007,Business Development & Growth,Electricity,20013,Energy Costs,5006,king george,08/12/2017,0125735,2.87,Revenue,Npower Commercial Gas,16814,,
Chorley Borough Council,http://statistics.data.gov.uk/id/local-authority/30UE,Democratic Represent and  Mgnt,1007,Business Development & Growth,Electricity,20013,Energy Costs,5006,astley hall farm,08/12/2017,0125735,73.81,Revenue,Npower Commercial Gas,16814,,
Chorley Borough Council,http://statistics.data.gov.uk/id/local-authority/30UE,Democratic Represent and  Mgnt,1007,Business Development & Growth,Electricity,20013,Energy Costs,5006,astley hall,08/12/2017,0125735,83.90,Revenue,Npower Commercial Gas,16814,,
Chorley Borough Council,http://statistics.data.gov.uk/id/local-authority/30UE,Democratic Represent and  Mgnt,1007,Business Development & Growth,Electricity,20013,Energy Costs,5006,eaves green,08/12/2017,0125735,144.01,Revenue,Npower Commercial Gas,16814,,
Chorley Borough Council,http://statistics.data.gov.uk/id/local-authority/30UE,Community Development,1097,Business Development & Growth,Electricity,20013,Energy Costs,5006,35-39 market st,08/12/2017,0125735,110.61,Revenue,Npower Commercial Gas,16814,,
Chorley Borough Council,http://statistics.data.gov.uk/id/local-authority/30UE,Community Development,1097,Business Development & Growth,Electricity,20013,Energy Costs,5006,35-39 market st,08/12/2017,0125735,38.16,Revenue,Npower Commercial Gas,16814,,
Chorley Borough Council,http://statistics.data.gov.uk/id/local-authority/30UE,Community Development,1097,Business Development & Growth,Electricity,20013,Energy Costs,5006,35-39 market st,08/12/2017,0125735,77.44,Revenue,Npower Commercial Gas,16814,,
Chorley Borough Council,http://statistics.data.gov.uk/id/local-authority/30UE,Democratic Represent and  Mgnt,1007,Business Development & Growth,Electricity,20013,Energy Costs,5006,coronation rec,08/12/2017,0125735,17.87,Revenue,Npower Commercial Gas,16814,,
Chorley Borough Council,http://statistics.data.gov.uk/id/local-authority/30UE,Democratic Represent and  Mgnt,1007,Business Development & Growth,Electricity,20013,Energy Costs,5006,astley vill cc,08/12/2017,0125735,120.14,Revenue,Npower Commercial Gas,16814,,
Chorley Borough Council,http://statistics.data.gov.uk/id/local-authority/30UE,Democratic Represent and  Mgnt,1007,Business Development & Growth,Electricity,20013,Energy Costs,5006,astley hall coach house,08/12/2017,0125735,977.97,Revenue,Npower Commercial Gas,16814,,
Chorley Borough Council,http://statistics.data.gov.uk/id/local-authority/30UE,Democratic Represent and  Mgnt,1007,Business Development & Growth,Electricity,20013,Energy Costs,5006,astley hall cottage,08/12/2017,0125735,96.57,Revenue,Npower Commercial Gas,16814,,
Chorley Borough Council,http://statistics.data.gov.uk/id/local-authority/30UE,Corporate Management,1008,Business Development & Growth,Electricity,20013,Energy Costs,5006,cemetries office,08/12/2017,0125735,53.16,Revenue,Npower Commercial Gas,16814,,
Chorley Borough Council,http://statistics.data.gov.uk/id/local-authority/30UE,Democratic Represent and  Mgnt,1007,Business Development & Growth,Electricity,20013,Energy Costs,5006,astley park chanmging rooms,08/12/2017,0125735,313.92,Revenue,Npower Commercial Gas,16814,,
Chorley Borough Council,http://statistics.data.gov.uk/id/local-authority/30UE,Economic Development,1096,Business Development & Growth,Electricity,20013,Energy Costs,5006,market compactor,08/12/2017,0125735,86.59,Revenue,Npower Commercial Gas,16814,,
Chorley Borough Council,http://statistics.data.gov.uk/id/local-authority/30UE,Democratic Represent and  Mgnt,1007,Business Development & Growth,Electricity,20013,Energy Costs,5006,king george,08/12/2017,0125735,7.64,Revenue,Npower Commercial Gas,16814,,
Chorley Borough Council,http://statistics.data.gov.uk/id/local-authority/30UE,Economic Development,1096,Business Development & Growth,Electricity,20013,Energy Costs,5006,portacabin stall,08/12/2017,0125735,2.75,Revenue,Npower Commercial Gas,16814,,
Chorley Borough Council,http://statistics.data.gov.uk/id/local-authority/30UE,Homelessness,1075,Business Development & Growth,Electricity,20013,Energy Costs,5006,cotswold house,08/12/2017,0125735,425.80,Revenue,Npower Commercial Gas,16814,,
Chorley Borough Council,http://statistics.data.gov.uk/id/local-authority/30UE,Homelessness,1075,Business Development & Growth,Electricity,20013,Energy Costs,5006,cotswold house,08/12/2017,0125735,168.10,Revenue,Npower Commercial Gas,16814,,
Chorley Borough Council,http://statistics.data.gov.uk/id/local-authority/30UE,Homelessness,1075,Business Development & Growth,Electricity,20013,Energy Costs,5006,cotswold hosue,08/12/2017,0125735,65.01,Revenue,Npower Commercial Gas,16814,,
Chorley Borough Council,http://statistics.data.gov.uk/id/local-authority/30UE,Recreation & Sport,1037,Business Development & Growth,Electricity,20013,Energy Costs,5006,buttermere,08/12/2017,0125735,112.38,Revenue,Npower Commercial Gas,16814,,
Chorley Borough Council,http://statistics.data.gov.uk/id/local-authority/30UE,Recreation & Sport,1037,Business Development & Growth,Electricity,20013,Energy Costs,5006,buckshaw,08/12/2017,0125735,96.20,Revenue,Npower Commercial Gas,16814,,
Chorley Borough Council,http://statistics.data.gov.uk/id/local-authority/30UE,Democratic Represent and  Mgnt,1007,Business Development & Growth,Electricity,20013,Energy Costs,5006,rangletts,08/12/2017,0125735,17.99,Revenue,Npower Commercial Gas,16814,,
Chorley Borough Council,http://statistics.data.gov.uk/id/local-authority/30UE,Parking Services,1066,Business Development & Growth,Electricity,20013,Energy Costs,5006,car park,08/12/2017,0126135,1.06,Revenue,Npower Commercial Gas,16814,,
Chorley Borough Council,http://statistics.data.gov.uk/id/local-authority/30UE,Parking Services,1066,Business Development & Growth,Electricity,20013,Energy Costs,5006,pay and display,08/12/2017,0126135,105.44,Revenue,Npower Commercial Gas,16814,,
Chorley Borough Council,http://statistics.data.gov.uk/id/local-authority/30UE,Central Support Services,1009,Business Development & Growth,Electricity,20013,Energy Costs,5006,cctv,08/12/2017,0126135,260.92,Revenue,Npower Commercial Gas,16814,,
Chorley Borough Council,http://statistics.data.gov.uk/id/local-authority/30UE,Business Support,1095,Business Development & Growth,Electricity,20013,Energy Costs,5006,market walk,08/12/2017,0126136,"4,205.00",Revenue,Npower Commercial Gas,16814,,
Chorley Borough Council,http://statistics.data.gov.uk/id/local-authority/30UE,Business Support,1095,Business Development & Growth,Electricity,20013,Energy Costs,5006,market walk,08/12/2017,0126136,"3,971.06",Revenue,Npower Commercial Gas,16814,,
Chorley Borough Council,http://statistics.data.gov.uk/id/local-authority/30UE,Parking Services,1066,Business Development & Growth,External Contractors,50008,Private Contractors,5042,Extra staff: x1 Cleveland St on Mon - Fri 8am - 3pm & Saturday 8am - 1pm (Started 16.10.17) Extra staff to cover other car parks,08/12/2017,0126039,"4,510.27",Revenue,NSL Limited,67253,,
Chorley Borough Council,http://statistics.data.gov.uk/id/local-authority/30UE,Parking Services,1066,Business Development & Growth,External Contractors,50008,Private Contractors,5042,"Vari fee for extra enforcement (May, June, July, August & Sept 17)",08/12/2017,0126040,521.10,Revenue,NSL Limited,67253,,
Chorley Borough Council,http://statistics.data.gov.uk/id/local-authority/30UE,Parking Services,1066,Business Development & Growth,External Contractors,50008,Private Contractors,5042,"October, November, December 17 & Jan, Feb & March 18 Extra hours for Saturday & Sundays (from May 17)",08/12/2017,0126040,166.38,Revenue,NSL Limited,67253,,
Chorley Borough Council,http://statistics.data.gov.uk/id/local-authority/30UE,Parking Services,1066,Business Development & Growth,External Contractors,50008,Private Contractors,5042,"Provision of off street car park enforcement, cash collection, cash counting facilities and third party bulk cash collections April 17 ",08/12/2017,0126051,"3,856.03",Revenue,NSL Limited,67253,,
Chorley Borough Council,http://statistics.data.gov.uk/id/local-authority/30UE,Service Management & Support,1009,Customer & Digital,Supplies-Grounds Maintenance,40025,"Equipment, Furniture & Materia",5023,Supply goods as per your invoice 206194,01/12/2017,0125922,299.94,Revenue,Nuts Engineering Supplies Ltd,16632,,
Chorley Borough Council,http://statistics.data.gov.uk/id/local-authority/30UE,Unapportionable Central OHeads,1009,Policy & Governance,Furniture - Purchase,40012,"Equipment, Furniture & Materia",5023,"Product Code: 28539 100 bunch Securikey Deep Key Vault 335 QTY 2 Total cost 670 Delivery Civic Services Town Hall Chorley ",13/12/2017,0126212,670.00,Revenue,Office Furniture Online,60744,,
Chorley Borough Council,http://statistics.data.gov.uk/id/local-authority/30UE,Parking Services,1066,Business Development & Growth,Printing,40043,"Printing, Stationery & General",5026,"Please supply 60,000 single stock tickets 101195 @ 4.65 per 1000",08/12/2017,0126128,279.00,Revenue,Paperwork (UK) Limited,18296,,
Chorley Borough Council,http://statistics.data.gov.uk/id/local-authority/30UE,Parking Services,1066,Business Development & Growth,Printing,40043,"Printing, Stationery & General",5026,"Supply 200k Stelio Adhesive @ 4.65 per thousand= 930 Check Out Chorley advertising on reverse 30k stock tickets at 139.50",15/12/2017,0126234,962.55,Revenue,Paperwork (UK) Limited,18296,,
Chorley Borough Council,http://statistics.data.gov.uk/id/local-authority/30UE,Homelessness,1075,Early Intervention,Training Course Fees,17010,Indirect Employee Expenses,5002,The attendance of 3 employees from Cotswold Supported Housing on the Applied Suicide Intervention Skills Training from 30th,01/12/2017,0125941,495.00,Revenue,Papyrus UK,77083,,
Chorley Borough Council,http://statistics.data.gov.uk/id/local-authority/30UE,Capital,Capital,Business Development & Growth,Equipment,03014,Capital Expenditure,Capital,"Quote ref: SA-2017-1209-SS- Chorley Council (ESPO 509) Please supply x1 Solar Powered STRADA TRANSFER, COIN ONLY",06/12/2017,0125960,"3,098.00",Capital,Parkeon Ltd,16279,,
Chorley Borough Council,http://statistics.data.gov.uk/id/local-authority/30UE,Capital,Capital,Business Development & Growth,Equipment,03014,Capital Expenditure,Capital,Commissioning: described in ESPO 509 as �Installation of Machine. To a base prepared by the council with an electrical,06/12/2017,0125960,55.00,Capital,Parkeon Ltd,16279,,
Chorley Borough Council,http://statistics.data.gov.uk/id/local-authority/30UE,Capital,Capital,Business Development & Growth,Equipment,03014,Capital Expenditure,Capital,Installation of Strada machine by our nominated CHAS registered sub-contractor. Price is based on 1 machines being installed,06/12/2017,0125960,495.00,Capital,Parkeon Ltd,16279,,
Chorley Borough Council,http://statistics.data.gov.uk/id/local-authority/30UE,Unapportionable Central OHeads,1009,Policy & Governance,Service Fees,40056,Services,5027,Occupational Health Fees for November 2017,15/12/2017,0126204,299.75,Revenue,People Asset Management Limited,76487,,
Chorley Borough Council,http://statistics.data.gov.uk/id/local-authority/30UE,Unapportionable Central OHeads,1009,Policy & Governance,Service Fees,40056,Services,5027,oh charges,15/12/2017,0126204,250.00,Revenue,People Asset Management Limited,76487,,
Chorley Borough Council,http://statistics.data.gov.uk/id/local-authority/30UE,Capital,Capital,Business Development & Growth,Other Capital Related Fees,03024,Capital Expenditure,Capital,Primrose Gardens November 2017,06/12/2017,0125218,"1,896.00",Capital,Perfect Circle JV Ltd,76438,,
Chorley Borough Council,http://statistics.data.gov.uk/id/local-authority/30UE,Capital,Capital,Business Development & Growth,Other Capital Related Fees,03024,Capital Expenditure,Capital,Primrose Gardens December 2017,08/12/2017,0126066,"1,896.00",Capital,Perfect Circle JV Ltd,76438,,
Chorley Borough Council,http://statistics.data.gov.uk/id/local-authority/30UE,Capital,Capital,Business Development & Growth,Other Capital Related Fees,03024,Capital Expenditure,Capital,Primrose Gardens December 2017,08/12/2017,0126085,"2,432.25",Capital,Perfect Circle JV Ltd,76438,,
Chorley Borough Council,http://statistics.data.gov.uk/id/local-authority/30UE,Business Support,1095,Customer & Digital,Miscellaneous Expenses,40200,Miscellaneous Expenses,5034,Valuation of land off Wigan Road as per the fee proposal,01/12/2017,0125632,"1,657.50",Revenue,Peter E Gilkes & Co,17634,,
Chorley Borough Council,http://statistics.data.gov.uk/id/local-authority/30UE,Central Support Services,1009,Early Intervention,External Contractor,40198,Miscellaneous Expenses,5034,Pest Control Duties within Chorley Council,13/12/2017,0125658,340.00,Revenue,Peter L Johnson,16727,,
Chorley Borough Council,http://statistics.data.gov.uk/id/local-authority/30UE,Central Support Services,1009,Early Intervention,External Contractor,40198,Miscellaneous Expenses,5034,Pest Control Duties within Chorley Council,22/12/2017,0125724,340.00,Revenue,Peter L Johnson,16727,,
Chorley Borough Council,http://statistics.data.gov.uk/id/local-authority/30UE,Central Support Services,1009,Early Intervention,Miscellaneous Expenses,40200,Miscellaneous Expenses,5034,Pest Control Duties 27-30 Nov 2017,20/12/2017,0126295,340.00,Revenue,Peter L Johnson,16727,,
Chorley Borough Council,http://statistics.data.gov.uk/id/local-authority/30UE,Central Support Services,1009,Early Intervention,External Contractor,40198,Miscellaneous Expenses,5034,Pest Control Duties within Chorley Council,22/12/2017,0126299,340.00,Revenue,Peter L Johnson,16727,,
Chorley Borough Council,http://statistics.data.gov.uk/id/local-authority/30UE,Central Support Services,1009,Early Intervention,Miscellaneous Expenses,40200,Miscellaneous Expenses,5034,Pest Control Duties Monday 20 - Thursday 23rd November,20/12/2017,0126300,340.00,Revenue,Peter L Johnson,16727,,
Chorley Borough Council,http://statistics.data.gov.uk/id/local-authority/30UE,Central Support Services,1009,Early Intervention,External Contractor,40198,Miscellaneous Expenses,5034,Pest Control Duties within Chorley Council,22/12/2017,0126429,340.00,Revenue,Peter L Johnson,16727,,
Chorley Borough Council,http://statistics.data.gov.uk/id/local-authority/30UE,Central Support Services,1009,Early Intervention,External Contractor,40198,Miscellaneous Expenses,5034,Pest Control Duties within Chorley Council,22/12/2017,0126430,340.00,Revenue,Peter L Johnson,16727,,
Chorley Borough Council,http://statistics.data.gov.uk/id/local-authority/30UE,Capital,Capital,Customer & Digital,Consultants Fees,03025,Capital Expenditure,Capital,"Quantity surveying services for market walk - 43,056 over an 18 month period",08/12/2017,0125844,"2,704.00",Capital,Pick Everard,76515,,
Chorley Borough Council,http://statistics.data.gov.uk/id/local-authority/30UE,Capital,Capital,Customer & Digital,Consultants Fees,03025,Capital Expenditure,Capital,"Project management services for market walk - 111,384 over an 18 month period",08/12/2017,0125870,"5,408.00",Capital,Pick Everard,76515,,
Chorley Borough Council,http://statistics.data.gov.uk/id/local-authority/30UE,Service Management & Support,1009,Customer & Digital,Supplies-Grounds Maintenance,40025,"Equipment, Furniture & Materia",5023,Traffic film remover per litre,15/12/2017,0126221,120.00,Revenue,Pilkington Oils,18075,,
Chorley Borough Council,http://statistics.data.gov.uk/id/local-authority/30UE,Service Management & Support,1009,Customer & Digital,Supplies-Grounds Maintenance,40025,"Equipment, Furniture & Materia",5023,LITRES BLUE ANTIFREEZE MEG per ltire,15/12/2017,0126221,49.60,Revenue,Pilkington Oils,18075,,
Chorley Borough Council,http://statistics.data.gov.uk/id/local-authority/30UE,Service Management & Support,1009,Customer & Digital,Supplies-Grounds Maintenance,40025,"Equipment, Furniture & Materia",5023,RED LONGLIFE ANTIFREEZE  per litre,15/12/2017,0126221,54.40,Revenue,Pilkington Oils,18075,,
Chorley Borough Council,http://statistics.data.gov.uk/id/local-authority/30UE,Service Management & Support,1009,Customer & Digital,Supplies-Grounds Maintenance,40025,"Equipment, Furniture & Materia",5023,SCREENWASH per litre,15/12/2017,0126221,45.00,Revenue,Pilkington Oils,18075,,
Chorley Borough Council,http://statistics.data.gov.uk/id/local-authority/30UE,Economic Development,1096,Business Development & Growth,Miscellaneous Expenses,40200,Miscellaneous Expenses,5034,"For sponsorship of New Business Award at the EVAs 2018 at a cost of 2,199 plus VAT",13/12/2017,0126216,"2,199.00",Revenue,Pink Link Ladies Ltd,66886,,
Chorley Borough Council,http://statistics.data.gov.uk/id/local-authority/30UE,Democratic Represent and  Mgnt,1007,Business Development & Growth,External Contractor,40198,Miscellaneous Expenses,5034,Allotment clearance at Moor Road and Worthy St.3 man team to clear plots including small tree work. Skips supplied by  Council,13/12/2017,0125873,570.00,Revenue,plano ltd,77059,,
Chorley Borough Council,http://statistics.data.gov.uk/id/local-authority/30UE,Democratic Represent and  Mgnt,1007,Business Development & Growth,External Contractor,40198,Miscellaneous Expenses,5034,Allotments at Manor road Supply and install new 4ft feather board timber panel and concrete gravel board to boundary of allotments,13/12/2017,0125894,720.00,Revenue,plano ltd,77059,,
Chorley Borough Council,http://statistics.data.gov.uk/id/local-authority/30UE,Democratic Represent and  Mgnt,1007,Business Development & Growth,External Contractor,40198,Miscellaneous Expenses,5034,"Windsor Allotments. Supply operatives to flail area at side of allotments at Sandringham Road, also strim area back to tree line.",13/12/2017,0126062,"2,219.00",Revenue,plano ltd,77059,,
Chorley Borough Council,http://statistics.data.gov.uk/id/local-authority/30UE,Business Support,1095,Business Development & Growth,Miscellaneous Expenses,40200,Miscellaneous Expenses,5034,BREEAM Security Needs Assessment Digital Office Park,06/12/2017,0125945,800.00,Revenue,Police & Crime Commissioner,17548,,
Chorley Borough Council,http://statistics.data.gov.uk/id/local-authority/30UE,Business Support,1095,Business Development & Growth,Miscellaneous Expenses,40200,Miscellaneous Expenses,5034,Please supply as per quotation ref: 9841/1,06/12/2017,0125824,"1,991.28",Revenue,Poppy Signs Ltd,21898,,
Chorley Borough Council,http://statistics.data.gov.uk/id/local-authority/30UE,Parking Services,1066,Business Development & Growth,Miscellaneous Expenses,40200,Miscellaneous Expenses,5034,"Supply as per REF9842/1 Supply only, deliver to NAME REDACTED:- 12 of 3m x 1m MESH banners with eyelets 1 of 3660mm",01/12/2017,0125833,926.57,Revenue,Poppy Signs Ltd,21898,,
Chorley Borough Council,http://statistics.data.gov.uk/id/local-authority/30UE,Parking Services,1066,Business Development & Growth,Miscellaneous Expenses,40200,Miscellaneous Expenses,5034,Please supply : 8 Panels at 225 + VAT per panel � total = 1800 +VAT,01/12/2017,0125835,"1,800.00",Revenue,Poppy Signs Ltd,21898,,
Chorley Borough Council,http://statistics.data.gov.uk/id/local-authority/30UE,Business Support,1095,Business Development & Growth,Miscellaneous Expenses,40200,Miscellaneous Expenses,5034,A 1 Unit(s) Based on 3 panels 6 drops at 1.4m wide x 2.42m high Includes installation As per quote ref 9856/1,06/12/2017,0125937,675.00,Revenue,Poppy Signs Ltd,21898,,
Chorley Borough Council,http://statistics.data.gov.uk/id/local-authority/30UE,Unapportionable Central OHeads,1009,Policy & Governance,Exhibitions & Special Events,40158,Miscellaneous Expenses,5034,Land train signs,15/12/2017,0126087,352.01,Revenue,Poppy Signs Ltd,21898,,
Chorley Borough Council,http://statistics.data.gov.uk/id/local-authority/30UE,Central Support Services,1009,Early Intervention,Miscellaneous Expenses,40200,Miscellaneous Expenses,5034,PSPO A4 Size batch of 20 complete with sign rails and clips,13/12/2017,0126145,680.12,Revenue,Poppy Signs Ltd,21898,,
Chorley Borough Council,http://statistics.data.gov.uk/id/local-authority/30UE,Parking Services,1066,Business Development & Growth,Miscellaneous Expenses,40200,Miscellaneous Expenses,5034,As per quote reference: REF9875/1 Please supply additional signage for Service Yard 3: A 1 Unit(s) PEDESTRIAN PLEASE,15/12/2017,0126183,201.11,Revenue,Poppy Signs Ltd,21898,,
Chorley Borough Council,http://statistics.data.gov.uk/id/local-authority/30UE,Parking Services,1066,Business Development & Growth,Miscellaneous Expenses,40200,Miscellaneous Expenses,5034,B 1 Unit(s) DELIVERY AREA - Bottom end car park 1060mm x 600mm -- REMOVE 3 HOUR STAY SIGN FROM THIS AREA,15/12/2017,0126183,107.54,Revenue,Poppy Signs Ltd,21898,,
Chorley Borough Council,http://statistics.data.gov.uk/id/local-authority/30UE,Parking Services,1066,Business Development & Growth,Miscellaneous Expenses,40200,Miscellaneous Expenses,5034,C 1 Unit(s) PEDESTRIAN EXIT & PEDESTRIAN ENTRANCE - Above Gate 2 x 2000mm x 300mm - 10mm Correx 1 x Pedestrian,15/12/2017,0126183,125.22,Revenue,Poppy Signs Ltd,21898,,
Chorley Borough Council,http://statistics.data.gov.uk/id/local-authority/30UE,Parking Services,1066,Business Development & Growth,Miscellaneous Expenses,40200,Miscellaneous Expenses,5034,D 1 Unit(s) PEDESTRIAN PLEASE ONLY USE MARKED FOOTWAYS - Fence adjacent to entrance/exit gate 1 x 600mm (W) ,15/12/2017,0126183,87.61,Revenue,Poppy Signs Ltd,21898,,
Chorley Borough Council,http://statistics.data.gov.uk/id/local-authority/30UE,Parking Services,1066,Business Development & Growth,Miscellaneous Expenses,40200,Miscellaneous Expenses,5034,E 1 Unit(s) POST MOUNTED PEDESTRIAN PLEASE ONLY USE MARKED FOOTWAYS  Mounted to The Armco Barrier section,15/12/2017,0126183,435.84,Revenue,Poppy Signs Ltd,21898,,
Chorley Borough Council,http://statistics.data.gov.uk/id/local-authority/30UE,Parking Services,1066,Business Development & Growth,Miscellaneous Expenses,40200,Miscellaneous Expenses,5034,F 1 Unit(s) NO UNAUTHORISED ENTRY - GATES TO BE KEPT CLOSED 1 x 600mm (W) x 600mm (H) - 10mm Correx - Re: NO,15/12/2017,0126183,87.61,Revenue,Poppy Signs Ltd,21898,,
Chorley Borough Council,http://statistics.data.gov.uk/id/local-authority/30UE,Parking Services,1066,Business Development & Growth,Miscellaneous Expenses,40200,Miscellaneous Expenses,5034,G 1 Unit(s) 5MPH SPEED SIGNS - Entrance Pilars 2 x 600mm (W) x 600mm (H) - 10mm correx  5mph Screw fixed to brickwork,15/12/2017,0126183,109.83,Revenue,Poppy Signs Ltd,21898,,
Chorley Borough Council,http://statistics.data.gov.uk/id/local-authority/30UE,Parking Services,1066,Business Development & Growth,Miscellaneous Expenses,40200,Miscellaneous Expenses,5034,H 1 Unit(s) CAR PARK PRICE BOARDS - Both Entrance Pilars 2 x 600mm (W) x 600mm (H) 10mm correx 1 parking,15/12/2017,0126183,109.83,Revenue,Poppy Signs Ltd,21898,,
Chorley Borough Council,http://statistics.data.gov.uk/id/local-authority/30UE,Parking Services,1066,Business Development & Growth,Miscellaneous Expenses,40200,Miscellaneous Expenses,5034,Reference REF9879/1 Re : Cleveland Street Car Park A 1 Unit(s) GATES OPEN SIGN - POST MOUNTED (Existing Post),13/12/2017,0126184,311.19,Revenue,Poppy Signs Ltd,21898,,
Chorley Borough Council,http://statistics.data.gov.uk/id/local-authority/30UE,Economic Development,1096,Business Development & Growth,Miscellaneous Expenses,40200,Miscellaneous Expenses,5034,1 Unit(s) Batch of 4 units Same as previously ordered 203.80 203.80 B 8 Unit(s) Aboard Poster Cover Sheets Batch of 1 units,13/12/2017,0126186,261.40,Revenue,Poppy Signs Ltd,21898,,
Chorley Borough Council,http://statistics.data.gov.uk/id/local-authority/30UE,Central Support Services,1009,Early Intervention,Miscellaneous Expenses,40200,Miscellaneous Expenses,5034,"All stickers - 150 x 225mm exterior grade vinyl, digitally printed batch of 250",13/12/2017,0126203,382.72,Revenue,Poppy Signs Ltd,21898,,
Chorley Borough Council,http://statistics.data.gov.uk/id/local-authority/30UE,Unapportionable Central OHeads,1009,Policy & Governance,Exhibitions & Special Events,40158,Miscellaneous Expenses,5034,Mesh banners for the Christmas attraction,15/12/2017,0126228,263.18,Revenue,Poppy Signs Ltd,21898,,
Chorley Borough Council,http://statistics.data.gov.uk/id/local-authority/30UE,Parking Services,1066,Business Development & Growth,Miscellaneous Expenses,40200,Miscellaneous Expenses,5034,reference: REF9890/1 A 1 Unit(s) WAY OUT SIGN - Mounted to lamppost.  To supply & Install 1 x 3mm aluminium composite,22/12/2017,0126406,353.51,Revenue,Poppy Signs Ltd,21898,,
Chorley Borough Council,http://statistics.data.gov.uk/id/local-authority/30UE,Business Support,1095,Business Development & Growth,Miscellaneous Expenses,40200,Miscellaneous Expenses,5034,reference: REF9905/1 Parking Disclaimer A 1 Unit(s) PARKING DISCLAIMER to Supply 12 x 420mm (W) x 297mm (H) full,22/12/2017,0126410,278.82,Revenue,Poppy Signs Ltd,21898,,
Chorley Borough Council,http://statistics.data.gov.uk/id/local-authority/30UE,Unapportionable Central OHeads,1009,Business Development & Growth,Planned Maintenance,20006,Repairs Maintenance & Alts,5005,DEC Renewal September 2017 as per quotation,13/12/2017,0126181,650.00,Revenue,Prashant Vara,76869,,
Chorley Borough Council,http://statistics.data.gov.uk/id/local-authority/30UE,Unapportionable Central OHeads,1009,Policy & Governance,Refreshments,40036,Catering,5024,"Supply, Sanitation, provision of cups and water for all Pressure Coolers for Council Sites for the month of January 2018",20/12/2017,0125340,613.90,Revenue,Pressure Coolers Ltd T/A Maestro International Ltd,19767,,
Chorley Borough Council,http://statistics.data.gov.uk/id/local-authority/30UE,Unapportionable Central OHeads,1009,Policy & Governance,Refreshments,40036,Catering,5024,"Supply, Sanitation, provision of cups and water for all Pressure Coolers for Council Sites for the month of February 2018",20/12/2017,0126387,373.80,Revenue,Pressure Coolers Ltd T/A Maestro International Ltd,19767,,
Chorley Borough Council,http://statistics.data.gov.uk/id/local-authority/30UE,Elections,1012,Policy & Governance,Printing,40043,"Printing, Stationery & General",5026,2nd print run of ITR`s,13/12/2017,0126207,"1,059.24",Revenue,Print Image Network,21171,,
Chorley Borough Council,http://statistics.data.gov.uk/id/local-authority/30UE,Elections,1012,Policy & Governance,Printing,40043,"Printing, Stationery & General",5026,new postal vote applications from annual canvass,20/12/2017,0126375,"1,358.15",Revenue,Print Image Network,21171,,
Chorley Borough Council,http://statistics.data.gov.uk/id/local-authority/30UE,Corporate Management,1008,Customer & Digital,Consultants` Fees,40077,Services,5027,Consultancy services to support the provision of a waste collection contract,20/12/2017,0125934,"2,668.25",Revenue,Ricardo Energy & Environment,76939,,
Chorley Borough Council,http://statistics.data.gov.uk/id/local-authority/30UE,Corporate Management,1008,Customer & Digital,Consultants` Fees,40077,Services,5027,Consultancy services to support the provision of a waste collection contract,20/12/2017,0126374,"2,668.25",Revenue,Ricardo Energy & Environment,76939,,
Chorley Borough Council,http://statistics.data.gov.uk/id/local-authority/30UE,Elections,1012,Policy & Governance,Postages,40082,Communication and Computing,5028,business reply service RRHA-KZCB-CAXA Oct 2017 - March 2018,13/12/2017,0126225,616.46,Revenue,Royal Mail Group Plc,17522,,
Chorley Borough Council,http://statistics.data.gov.uk/id/local-authority/30UE,Development Control,1091,Customer & Digital,Consultants` Fees,40077,Services,5027,Provisional Agriculture Planning Advice,22/12/2017,0126359,409.00,Revenue,RSK ADAS UK Limited,16930,,
Chorley Borough Council,http://statistics.data.gov.uk/id/local-authority/30UE,Capital,Capital,Early Intervention,Main Contractor,03007,Capital Expenditure,Capital,credited,04/12/2017,0125992,"50,926.00",Capital,S & C Slatter,76985,,
Chorley Borough Council,http://statistics.data.gov.uk/id/local-authority/30UE,Capital,Capital,Early Intervention,Main Contractor,03007,Capital Expenditure,Capital,Works to and replacement of Clayton Green Football Pitches,15/12/2017,0126202,"47,126.00",Capital,S & C Slatter,76985,,
Chorley Borough Council,http://statistics.data.gov.uk/id/local-authority/30UE,Service Management & Support,1009,Customer & Digital,Vehicle Maintenance,30045,Direct Transport Costs,5016,Please supply 6 x wheel trim covers for Vauxhall Movano Vans.,13/12/2017,0126215,175.50,Revenue,Sam Bird Motorbodies,20116,,
Chorley Borough Council,http://statistics.data.gov.uk/id/local-authority/30UE,Service Management & Support,1009,Customer & Digital,Vehicle Maintenance,30045,Direct Transport Costs,5016,Please supply 1 x mirror glass to FL66 PDK,13/12/2017,0126215,53.50,Revenue,Sam Bird Motorbodies,20116,,
Chorley Borough Council,http://statistics.data.gov.uk/id/local-authority/30UE,Service Management & Support,1009,Customer & Digital,Vehicle Maintenance,30045,Direct Transport Costs,5016,Replace 1 x Vehicle Side Marker to FL66 OYW,13/12/2017,0126215,35.00,Revenue,Sam Bird Motorbodies,20116,,
Chorley Borough Council,http://statistics.data.gov.uk/id/local-authority/30UE,Service Management & Support,1009,Customer & Digital,Diesel/Derv,30007,Direct Transport Costs,5016,Please supply 3000 litres of Gas Oil @ the unit price of 0.50 per litre as per your bid on The Chest,20/12/2017,0126220,"1,525.50",Revenue,Samuel Cooke & Co Ltd,17173,,
Chorley Borough Council,http://statistics.data.gov.uk/id/local-authority/30UE,Service Management & Support,1009,Customer & Digital,Diesel/Derv,30007,Direct Transport Costs,5016,surcharge,20/12/2017,0126220,60.00,Revenue,Samuel Cooke & Co Ltd,17173,,
Chorley Borough Council,http://statistics.data.gov.uk/id/local-authority/30UE,Democratic Represent and  Mgnt,1007,Business Development & Growth,Electricity,20013,Energy Costs,5006,tatton cc,08/12/2017,0125828,946.61,Revenue,Scottish Power,18998,,
Chorley Borough Council,http://statistics.data.gov.uk/id/local-authority/30UE,Homelessness,1075,Early Intervention,External Contractor,40198,Miscellaneous Expenses,5034,"For concierge service at Cotswold Supported Housing, Cotswold Road, Chorley, PR7 3HW. This is for the period of August 2017 ",13/12/2017,0125509,"2,351.33",Revenue,Sector Security Services,19269,,
Chorley Borough Council,http://statistics.data.gov.uk/id/local-authority/30UE,Homelessness,1075,Early Intervention,External Contractor,40198,Miscellaneous Expenses,5034,"For concierge service at Cotswold Supported Housing, Cotswold Road, Chorley, PR7 3HW. This is for the period of August 2017",13/12/2017,0125668,"2,372.73",Revenue,Sector Security Services,19269,,
Chorley Borough Council,http://statistics.data.gov.uk/id/local-authority/30UE,Homelessness,1075,Early Intervention,External Contractor,40198,Miscellaneous Expenses,5034,"For concierge service at Cotswold Supported Housing, Cotswold Road, Chorley, PR7 3HW. This is for the period of August 2017 ",13/12/2017,0125965,"2,313.88",Revenue,Sector Security Services,19269,,
Chorley Borough Council,http://statistics.data.gov.uk/id/local-authority/30UE,Homelessness,1075,Early Intervention,External Contractor,40198,Miscellaneous Expenses,5034,"For concierge service at Cotswold Supported Housing, Cotswold Road, Chorley, PR7 3HW. This is for the period of August 2017 ",20/12/2017,0126230,"2,444.95",Revenue,Sector Security Services,19269,,
Chorley Borough Council,http://statistics.data.gov.uk/id/local-authority/30UE,Homelessness,1075,Early Intervention,External Contractor,40198,Miscellaneous Expenses,5034,"For concierge service at Cotswold Supported Housing, Cotswold Road, Chorley, PR7 3HW. This is for the period of August 2017 ",20/12/2017,0126322,"2,335.28",Revenue,Sector Security Services,19269,,
Chorley Borough Council,http://statistics.data.gov.uk/id/local-authority/30UE,Business Support,1095,Business Development & Growth,Security Service,40062,Services,5027,To provide security services to Market Walk Shopping Centre from April 2017 to March 2018. @5809.40 per month - Contract No,20/12/2017,0126381,"6,038.04",Revenue,Securitas Security Services (UK) Ltd,70693,,
Chorley Borough Council,http://statistics.data.gov.uk/id/local-authority/30UE,Economic Development,1096,Business Development & Growth,Miscellaneous Expenses,40200,Miscellaneous Expenses,5034,"For food, drinks and room hire package for 150 at the Choose Chorley Business Evening on 30th November, Shaw Hill.  ",08/12/2017,0126058,"1,458.33",Revenue,"Shaw Hill Hotel, Golf & Country Club",17056,,
Chorley Borough Council,http://statistics.data.gov.uk/id/local-authority/30UE,Unapportionable Central OHeads,1009,Policy & Governance,Miscellaneous Expenses,40200,Miscellaneous Expenses,5034,Film and produce a promotional video to encourage visitors to Chorley as part of the check out Chorley campaign,20/12/2017,0126350,850.00,Revenue,SkyOptics Ltd,76623,,
Chorley Borough Council,http://statistics.data.gov.uk/id/local-authority/30UE,Business Support,1095,Business Development & Growth,Grants To Other Organisations,40127,Grants and Subscriptions,5031,subsidy 3,06/12/2017,0125848,"2,344.54",Revenue,Slacks Farm Butchers Ltd,76611,,
Chorley Borough Council,http://statistics.data.gov.uk/id/local-authority/30UE,Service Management & Support,1009,Customer & Digital,Protective Clothing,40040,"Clothing, Uniforms and Laundry",5025,"Pulsar P421 Unlined Storm Jacket, En20471 Class 3, En 343 3:3, To include a full colour big back and left breast,logo and initials",20/12/2017,0126277,504.50,Revenue,Smart Image Workwear,21064,,
Chorley Borough Council,http://statistics.data.gov.uk/id/local-authority/30UE,Service Management & Support,1009,Customer & Digital,Protective Clothing,40040,"Clothing, Uniforms and Laundry",5025,"Pulsar P421 Unlined Storm Jacket, En20471 Class 3, En 343 3:3, To include a full colour big back and left breast,logo and initials",20/12/2017,0126277,706.30,Revenue,Smart Image Workwear,21064,,
Chorley Borough Council,http://statistics.data.gov.uk/id/local-authority/30UE,Service Management & Support,1009,Customer & Digital,Protective Clothing,40040,"Clothing, Uniforms and Laundry",5025,"Pulsar P421 Unlined Storm Jacket, En20471 Class 3, En 343 3:3, To include a full colour big back and left breast,logo and initials",20/12/2017,0126277,201.80,Revenue,Smart Image Workwear,21064,,
Chorley Borough Council,http://statistics.data.gov.uk/id/local-authority/30UE,Service Management & Support,1009,Customer & Digital,Protective Clothing,40040,"Clothing, Uniforms and Laundry",5025,"Pulsar P421 Unlined Storm Jacket, En20471 Class 3, En 343 3:3, To include a full colour big back and left breast,logo and initials",20/12/2017,0126277,100.90,Revenue,Smart Image Workwear,21064,,
Chorley Borough Council,http://statistics.data.gov.uk/id/local-authority/30UE,Service Management & Support,1009,Customer & Digital,Protective Clothing,40040,"Clothing, Uniforms and Laundry",5025,"Pulsar P421 Unlined Storm Jacket, En20471 Class 3, En 343 3:3, To include a full colour big back and left breast,logo and initials",20/12/2017,0126277,50.45,Revenue,Smart Image Workwear,21064,,
Chorley Borough Council,http://statistics.data.gov.uk/id/local-authority/30UE,Service Management & Support,1009,Customer & Digital,Protective Clothing,40040,"Clothing, Uniforms and Laundry",5025,"Pulsar P206 Unlined Overtrouser, En20471 Class 3, En 343 3:3, To include a full colour logo on the left leg and initials to the right",20/12/2017,0126277,314.40,Revenue,Smart Image Workwear,21064,,
Chorley Borough Council,http://statistics.data.gov.uk/id/local-authority/30UE,Service Management & Support,1009,Customer & Digital,Protective Clothing,40040,"Clothing, Uniforms and Laundry",5025,"Pulsar P206 Unlined Overtrouser, En20471 Class 3, En 343 3:3, To include a full colour logo on the left leg and initials to the right",20/12/2017,0126277,340.60,Revenue,Smart Image Workwear,21064,,
Chorley Borough Council,http://statistics.data.gov.uk/id/local-authority/30UE,Service Management & Support,1009,Customer & Digital,Protective Clothing,40040,"Clothing, Uniforms and Laundry",5025,"Pulsar P206 Unlined Overtrouser, En20471 Class 3, En 343 3:3, To include a full colour logo on the left leg and initials to the right",20/12/2017,0126277,78.60,Revenue,Smart Image Workwear,21064,,
Chorley Borough Council,http://statistics.data.gov.uk/id/local-authority/30UE,Service Management & Support,1009,Customer & Digital,Protective Clothing,40040,"Clothing, Uniforms and Laundry",5025,"Pulsar P206 Unlined Overtrouser, En20471 Class 3, En 343 3:3, To include a full colour logo on the left leg and initials to the right",20/12/2017,0126277,78.60,Revenue,Smart Image Workwear,21064,,
Chorley Borough Council,http://statistics.data.gov.uk/id/local-authority/30UE,Central Support Services,1009,Customer & Digital,Supplies - Workshop,40246,"Equipment, Furniture & Materia",5023,3  x Sit Stand - Conset 501-7 desks  117H heart shape in Beech with silver frame  3 @ 316.20,01/12/2017,0125695,948.60,Revenue,Somercourt Ltd,67048,,
Chorley Borough Council,http://statistics.data.gov.uk/id/local-authority/30UE,Service Management & Support,1009,Customer & Digital,Supplies - Workshop,40246,"Equipment, Furniture & Materia",5023,As quoted by NAME REDACTED;  product code 09625 bottom blades,08/12/2017,0126010,380.00,Revenue,Spalding (UK) Limited,20264,,
Chorley Borough Council,http://statistics.data.gov.uk/id/local-authority/30UE,Corporate Management,1008,Policy & Governance,Other Contributions,40145,Grants and Subscriptions,5031,For provision of service 7C from 27.08.17 to 31.03.18,13/12/2017,0126021,"7,687.15",Revenue,Stagecoach Services Limited,18598,,
Chorley Borough Council,http://statistics.data.gov.uk/id/local-authority/30UE,Unapportionable Central OHeads,1009,Policy & Governance,Exhibitions & Special Events,40158,Miscellaneous Expenses,5034,"Two Gold deckers for use at Astley Illuminated event on 25th November 2017, service to run between town centre and Astley Hall.",08/12/2017,0126022,405.37,Revenue,Stagecoach Services Limited,18598,,
Chorley Borough Council,http://statistics.data.gov.uk/id/local-authority/30UE,Parking Services,1066,Business Development & Growth,Miscellaneous Expenses,40200,Miscellaneous Expenses,5034,To Provide a Park & ride service from Morrison`s to Woodlands sites every Tuesday & Saturday from Tuesday 24th October 2017,08/12/2017,0126023,"1,930.91",Revenue,Stagecoach Services Limited,18598,,
Chorley Borough Council,http://statistics.data.gov.uk/id/local-authority/30UE,Unapportionable Central OHeads,1009,Business Development & Growth,Asset Maintenance Fund,20012,Repairs Maintenance & Alts,5005,carry out works in Room 7 at the Town Hall as per quotation,08/12/2017,0125610,"4,758.86",Revenue,Stringfellow Bldg Cntrctrs Ltd,17893,,
Chorley Borough Council,http://statistics.data.gov.uk/id/local-authority/30UE,Unapportionable Central OHeads,1009,Business Development & Growth,General Repairs - Reactive,20004,Repairs Maintenance & Alts,5005,blanket order for reactive repairs on all sites,08/12/2017,0125817,274.00,Revenue,Stringfellow Bldg Cntrctrs Ltd,17893,,
Chorley Borough Council,http://statistics.data.gov.uk/id/local-authority/30UE,Unapportionable Central OHeads,1009,Business Development & Growth,General Repairs - Reactive,20004,Repairs Maintenance & Alts,5005,blanket order for reactive repairs on all sites,08/12/2017,0125819,300.20,Revenue,Stringfellow Bldg Cntrctrs Ltd,17893,,
Chorley Borough Council,http://statistics.data.gov.uk/id/local-authority/30UE,Unapportionable Central OHeads,1009,Business Development & Growth,General Repairs - Reactive,20004,Repairs Maintenance & Alts,5005,blanket order for reactive repairs on all sites,13/12/2017,0125826,307.12,Revenue,Stringfellow Bldg Cntrctrs Ltd,17893,,
Chorley Borough Council,http://statistics.data.gov.uk/id/local-authority/30UE,Central Support Services,1009,Business Development & Growth,General Repairs - Reactive,20004,Repairs Maintenance & Alts,5005,blanket order for reactive repairs on all sites,13/12/2017,0126024,329.23,Revenue,Stringfellow Bldg Cntrctrs Ltd,17893,,
Chorley Borough Council,http://statistics.data.gov.uk/id/local-authority/30UE,Unapportionable Central OHeads,1009,Business Development & Growth,General Repairs - Reactive,20004,Repairs Maintenance & Alts,5005,blanket order for reactive repairs on all sites,13/12/2017,0126026,918.92,Revenue,Stringfellow Bldg Cntrctrs Ltd,17893,,
Chorley Borough Council,http://statistics.data.gov.uk/id/local-authority/30UE,Recreation & Sport,1037,Early Intervention,Fixtures & Fittings - Purchase,20027,Fixtures and Fittings,5010,"Remove Existing Lining from wall, stud, insulate, board and skim....200.00 + VAT Supply & install 5 lever mortice sash lock",13/12/2017,0126029,395.00,Revenue,Stringfellow Bldg Cntrctrs Ltd,17893,,
Chorley Borough Council,http://statistics.data.gov.uk/id/local-authority/30UE,Unapportionable Central OHeads,1009,Business Development & Growth,General Repairs - Reactive,20004,Repairs Maintenance & Alts,5005,blanket order for reactive repairs on all sites,20/12/2017,0126246,617.02,Revenue,Stringfellow Bldg Cntrctrs Ltd,17893,,
Chorley Borough Council,http://statistics.data.gov.uk/id/local-authority/30UE,Corporate Management,1008,Business Development & Growth,General Repairs - Reactive,20004,Repairs Maintenance & Alts,5005,Works to Chorley cemetery lodge as per quotation,20/12/2017,0126258,"3,950.00",Revenue,Stringfellow Bldg Cntrctrs Ltd,17893,,
Chorley Borough Council,http://statistics.data.gov.uk/id/local-authority/30UE,Unapportionable Central OHeads,1009,Policy & Governance,Asset Maintenance Fund,20012,Repairs Maintenance & Alts,5005,Lifting and removal of old carpet tiles in Civic Services office and Democratic Services office. Make good electrical floor sockets,15/12/2017,0126259,"3,750.00",Revenue,Stringfellow Bldg Cntrctrs Ltd,17893,,
Chorley Borough Council,http://statistics.data.gov.uk/id/local-authority/30UE,Unapportionable Central OHeads,1009,Business Development & Growth,General Repairs - Reactive,20004,Repairs Maintenance & Alts,5005,blanket order for reactive repairs on all sites,20/12/2017,0126267,"1,993.25",Revenue,Stringfellow Bldg Cntrctrs Ltd,17893,,
Chorley Borough Council,http://statistics.data.gov.uk/id/local-authority/30UE,Unapportionable Central OHeads,1009,Business Development & Growth,General Repairs - Reactive,20004,Repairs Maintenance & Alts,5005,blanket order for reactive repairs on all sites,20/12/2017,0126305,648.95,Revenue,Stringfellow Bldg Cntrctrs Ltd,17893,,
Chorley Borough Council,http://statistics.data.gov.uk/id/local-authority/30UE,Community Development,1097,Business Development & Growth,Planned Maintenance,20006,Repairs Maintenance & Alts,5005,Replace windows CAB and NAME REDACTED office - 35/39 Market St,22/12/2017,0126306,"3,195.00",Revenue,Stringfellow Bldg Cntrctrs Ltd,17893,,
Chorley Borough Council,http://statistics.data.gov.uk/id/local-authority/30UE,Unapportionable Central OHeads,1009,Business Development & Growth,General Repairs - Reactive,20004,Repairs Maintenance & Alts,5005,blanket order for reactive repairs on all sites,22/12/2017,0126308,750.00,Revenue,Stringfellow Bldg Cntrctrs Ltd,17893,,
Chorley Borough Council,http://statistics.data.gov.uk/id/local-authority/30UE,Parking Services,1066,Business Development & Growth,Fixtures & Fittings - Repair/Mtnce,20028,Fixtures and Fittings,5010,Works at market walk service yards,20/12/2017,0126327,943.21,Revenue,Stringfellow Bldg Cntrctrs Ltd,17893,,
Chorley Borough Council,http://statistics.data.gov.uk/id/local-authority/30UE,Parking Services,1066,Business Development & Growth,Fixtures & Fittings - Repair/Mtnce,20028,Fixtures and Fittings,5010,Works at market walk service yards,20/12/2017,0126328,"2,979.39",Revenue,Stringfellow Bldg Cntrctrs Ltd,17893,,
Chorley Borough Council,http://statistics.data.gov.uk/id/local-authority/30UE,Unapportionable Central OHeads,1009,Business Development & Growth,General Repairs - Reactive,20004,Repairs Maintenance & Alts,5005,blanket order for reactive repairs on all sites,20/12/2017,0126330,864.62,Revenue,Stringfellow Bldg Cntrctrs Ltd,17893,,
Chorley Borough Council,http://statistics.data.gov.uk/id/local-authority/30UE,Unapportionable Central OHeads,1009,Business Development & Growth,General Repairs - Reactive,20004,Repairs Maintenance & Alts,5005,blanket order for reactive repairs on all sites,20/12/2017,0126334,273.80,Revenue,Stringfellow Bldg Cntrctrs Ltd,17893,,
Chorley Borough Council,http://statistics.data.gov.uk/id/local-authority/30UE,Capital,Capital,Business Development & Growth,Main Contractor,03007,Capital Expenditure,Capital,Gillibrand St - Removal of furniture and dispose plus shrub clearance to allow access,22/12/2017,0126390,"1,265.50",Capital,Stringfellow Bldg Cntrctrs Ltd,17893,,
Chorley Borough Council,http://statistics.data.gov.uk/id/local-authority/30UE,Capital,Capital,Early Intervention,Grants,03002,Capital Expenditure,Capital,ADDRESS REDACTED,20/12/2017,0126423,"4,156.00",Capital,Stringfellow Bldg Cntrctrs Ltd,17893,,
Chorley Borough Council,http://statistics.data.gov.uk/id/local-authority/30UE,Capital,Capital,Early Intervention,Grants,03002,Capital Expenditure,Capital,ADDRESS REDACTED,20/12/2017,0126424,"3,285.00",Capital,Stringfellow Bldg Cntrctrs Ltd,17893,,
Chorley Borough Council,http://statistics.data.gov.uk/id/local-authority/30UE,Capital,Capital,Early Intervention,Grants,03002,Capital Expenditure,Capital,ADDRESS REDACTED,20/12/2017,0126426,"3,694.00",Capital,Stringfellow Bldg Cntrctrs Ltd,17893,,
Chorley Borough Council,http://statistics.data.gov.uk/id/local-authority/30UE,Capital,Capital,Early Intervention,Grants,03002,Capital Expenditure,Capital,ADDRESS REDACTED,20/12/2017,0126428,"3,787.50",Capital,Stringfellow Bldg Cntrctrs Ltd,17893,,
Chorley Borough Council,http://statistics.data.gov.uk/id/local-authority/30UE,Business Support,1095,Business Development & Growth,Miscellaneous Expenses,40200,Miscellaneous Expenses,5034,Topographical Survey Checks and Letter of reliance,01/12/2017,0123849,400.00,Revenue,Survey Operations Ltd,55910,,
Chorley Borough Council,http://statistics.data.gov.uk/id/local-authority/30UE,Capital,Capital,Business Development & Growth,Consultants Fees,03025,Capital Expenditure,Capital,Topographical survey at Chorley cemetery,08/12/2017,0125705,550.00,Capital,Survey Operations Ltd,55910,,
Chorley Borough Council,http://statistics.data.gov.uk/id/local-authority/30UE,Business Support,1095,Business Development & Growth,Miscellaneous Expenses,40200,Miscellaneous Expenses,5034,"Topographical survey of the area highlighted and described in your email/survey brief, at the stated location (service yards",01/12/2017,0125869,495.00,Revenue,Survey Operations Ltd,55910,,
Chorley Borough Council,http://statistics.data.gov.uk/id/local-authority/30UE,Economic Development,1096,Business Development & Growth,Cleaning Materials,40019,"Equipment, Furniture & Materia",5023,Please supply Janitorial supplies as per e-mail,01/12/2017,0125857,415.65,Revenue,Swiftkleen Ltd,17933,,
Chorley Borough Council,http://statistics.data.gov.uk/id/local-authority/30UE,Homelessness,1075,Early Intervention,Tools & Equipment - Purchase,40003,"Equipment, Furniture & Materia",5023,Quilts Single Bed 10.5 Tog,06/12/2017,0125984,109.60,Revenue,Swiftkleen Ltd,17933,,
Chorley Borough Council,http://statistics.data.gov.uk/id/local-authority/30UE,Homelessness,1075,Early Intervention,Tools & Equipment - Purchase,40003,"Equipment, Furniture & Materia",5023,Pillows Pack of 2 Medium,06/12/2017,0125984,33.36,Revenue,Swiftkleen Ltd,17933,,
Chorley Borough Council,http://statistics.data.gov.uk/id/local-authority/30UE,Homelessness,1075,Early Intervention,Cleaning Materials,40019,"Equipment, Furniture & Materia",5023,Sirius Mini Jumbo Toilet Rolls 200m x 90mm (Pack of 12),06/12/2017,0125984,51.66,Revenue,Swiftkleen Ltd,17933,,
Chorley Borough Council,http://statistics.data.gov.uk/id/local-authority/30UE,Homelessness,1075,Early Intervention,Cleaning Materials,40019,"Equipment, Furniture & Materia",5023,Black Refuse Sacks 180g (Heavy Duty) pack of 200,06/12/2017,0125984,35.10,Revenue,Swiftkleen Ltd,17933,,
Chorley Borough Council,http://statistics.data.gov.uk/id/local-authority/30UE,Homelessness,1075,Early Intervention,Cleaning Materials,40019,"Equipment, Furniture & Materia",5023,Exel PY Colour Coded Mop Head,06/12/2017,0125984,11.76,Revenue,Swiftkleen Ltd,17933,,
Chorley Borough Council,http://statistics.data.gov.uk/id/local-authority/30UE,Homelessness,1075,Early Intervention,Cleaning Materials,40019,"Equipment, Furniture & Materia",5023,Non-Biological Washing Powder 10kg - 100 washes,06/12/2017,0125984,8.30,Revenue,Swiftkleen Ltd,17933,,
Chorley Borough Council,http://statistics.data.gov.uk/id/local-authority/30UE,Homelessness,1075,Early Intervention,Cleaning Materials,40019,"Equipment, Furniture & Materia",5023,"Evans Vanodine Everfresh, Perfumed thickened toilet cleaner - 5 litre",06/12/2017,0125984,6.76,Revenue,Swiftkleen Ltd,17933,,
Chorley Borough Council,http://statistics.data.gov.uk/id/local-authority/30UE,Homelessness,1075,Early Intervention,Cleaning Materials,40019,"Equipment, Furniture & Materia",5023,Colour Coded Dish Cloths - pack of 10,06/12/2017,0125984,1.99,Revenue,Swiftkleen Ltd,17933,,
Chorley Borough Council,http://statistics.data.gov.uk/id/local-authority/30UE,Homelessness,1075,Early Intervention,Cleaning Materials,40019,"Equipment, Furniture & Materia",5023,Evans Vanodine Aerosol Air Freshener 400ml - Apple Fragrance,06/12/2017,0125984,8.40,Revenue,Swiftkleen Ltd,17933,,
Chorley Borough Council,http://statistics.data.gov.uk/id/local-authority/30UE,Homelessness,1075,Early Intervention,Cleaning Materials,40019,"Equipment, Furniture & Materia",5023,Stand-up Long Life Gel Air Freshener (any fragrance) - Case of 12,06/12/2017,0125984,3.36,Revenue,Swiftkleen Ltd,17933,,
Chorley Borough Council,http://statistics.data.gov.uk/id/local-authority/30UE,Homelessness,1075,Early Intervention,Cleaning Materials,40019,"Equipment, Furniture & Materia",5023,Blue Nitrile disposable gloves (Medium),06/12/2017,0125984,8.85,Revenue,Swiftkleen Ltd,17933,,
Chorley Borough Council,http://statistics.data.gov.uk/id/local-authority/30UE,Homelessness,1075,Early Intervention,Cleaning Materials,40019,"Equipment, Furniture & Materia",5023,"Swing Bin Liners, White - 200 per roll",06/12/2017,0125984,2.12,Revenue,Swiftkleen Ltd,17933,,
Chorley Borough Council,http://statistics.data.gov.uk/id/local-authority/30UE,Homelessness,1075,Early Intervention,Cleaning Materials,40019,"Equipment, Furniture & Materia",5023,"Evans Vanodine Trigon, Hand Soap, Un-perfumed 5ltr",06/12/2017,0125984,11.04,Revenue,Swiftkleen Ltd,17933,,
Chorley Borough Council,http://statistics.data.gov.uk/id/local-authority/30UE,Homelessness,1075,Early Intervention,Tools & Equipment - Purchase,40003,"Equipment, Furniture & Materia",5023,Coffee/Tea Mug,06/12/2017,0125984,12.00,Revenue,Swiftkleen Ltd,17933,,
Chorley Borough Council,http://statistics.data.gov.uk/id/local-authority/30UE,Homelessness,1075,Early Intervention,Tools & Equipment - Purchase,40003,"Equipment, Furniture & Materia",5023,Side Plate,06/12/2017,0125984,13.92,Revenue,Swiftkleen Ltd,17933,,
Chorley Borough Council,http://statistics.data.gov.uk/id/local-authority/30UE,Homelessness,1075,Early Intervention,Tools & Equipment - Purchase,40003,"Equipment, Furniture & Materia",5023,Cereal Bowl,06/12/2017,0125984,13.92,Revenue,Swiftkleen Ltd,17933,,
Chorley Borough Council,http://statistics.data.gov.uk/id/local-authority/30UE,Homelessness,1075,Early Intervention,Cleaning Materials,40019,"Equipment, Furniture & Materia",5023,Professional Boxed Tissues - Box of 36 packs,06/12/2017,0125984,14.26,Revenue,Swiftkleen Ltd,17933,,
Chorley Borough Council,http://statistics.data.gov.uk/id/local-authority/30UE,Homelessness,1075,Early Intervention,Cleaning Materials,40019,"Equipment, Furniture & Materia",5023,Evans Extract Carpet Shampoo 5 Ltr,06/12/2017,0125984,6.84,Revenue,Swiftkleen Ltd,17933,,
Chorley Borough Council,http://statistics.data.gov.uk/id/local-authority/30UE,Homelessness,1075,Early Intervention,Cleaning Materials,40019,"Equipment, Furniture & Materia",5023,Evans Spot Light,06/12/2017,0125984,3.50,Revenue,Swiftkleen Ltd,17933,,
Chorley Borough Council,http://statistics.data.gov.uk/id/local-authority/30UE,Central Support Services,1009,Early Intervention,Tools & Equipment - Maintenance,40005,"Equipment, Furniture & Materia",5023,Service and maintenance correcting faults for CCTV,13/12/2017,0125513,"1,003.70",Revenue,Technology Solutions,72376,,
Chorley Borough Council,http://statistics.data.gov.uk/id/local-authority/30UE,Unapportionable Central OHeads,1009,Business Development & Growth,General Repairs - Reactive,20004,Repairs Maintenance & Alts,5005,Blanket  reactive order from Jul 2017,13/12/2017,0125907,590.00,Revenue,The Guardian Shutter Co LTD,21769,,
Chorley Borough Council,http://statistics.data.gov.uk/id/local-authority/30UE,Unapportionable Central OHeads,1009,Policy & Governance,Exhibitions & Special Events,40158,Miscellaneous Expenses,5034,Markets A2 bus stop posters,15/12/2017,0125709,360.00,Revenue,The Print Quarter,17987,,
Chorley Borough Council,http://statistics.data.gov.uk/id/local-authority/30UE,Unapportionable Central OHeads,1009,Policy & Governance,Exhibitions & Special Events,40158,Miscellaneous Expenses,5034,Aladdin Pantomime performance 24 November,20/12/2017,0126376,800.00,Revenue,The Storytellers Theatre Company,19917,,
Chorley Borough Council,http://statistics.data.gov.uk/id/local-authority/30UE,Central Support Services,1009,Early Intervention,Miscellaneous Expenses,40200,Miscellaneous Expenses,5034,"40,000 Beer Matts for the PCC funding - Road Safety",20/12/2017,0126377,755.00,Revenue,Thirstys.co.uk ltd,51260,,
Chorley Borough Council,http://statistics.data.gov.uk/id/local-authority/30UE,Development Control,1091,Customer & Digital,Publications,40054,"Printing, Stationery & General",5026,encyc env health,13/12/2017,0117703,"2,704.00",Revenue,Thomson Reuters RE;Sweet & Maxwell Limited,17932,,
Chorley Borough Council,http://statistics.data.gov.uk/id/local-authority/30UE,Service Management & Support,1009,Customer & Digital,Supplies-Grounds Maintenance,40025,"Equipment, Furniture & Materia",5023,Memorial Safety Inspection Course,20/12/2017,0126263,690.00,Revenue,Tomasson Consultants,77077,,
Chorley Borough Council,http://statistics.data.gov.uk/id/local-authority/30UE,Unapportionable Central OHeads,1009,Policy & Governance,Service Fees,40056,Services,5027,Counselling sessions for KU x 9,20/12/2017,0126439,315.00,Revenue,Truly Therapeutic Ltd,66885,,
Chorley Borough Council,http://statistics.data.gov.uk/id/local-authority/30UE,Central Support Services,1009,Policy & Governance,Miscellaneous Expenses,40200,Miscellaneous Expenses,5034,levels 1-5,20/12/2017,0126282,"1,554.80",Revenue,UK Healthcare (BDHSC),17241,,
Chorley Borough Council,http://statistics.data.gov.uk/id/local-authority/30UE,Control Accounts,Control,Policy & Governance,General Balances,00100,Balance Sheet,Balance,top ups,20/12/2017,0126282,598.69,Revenue,UK Healthcare (BDHSC),17241,,
Chorley Borough Council,http://statistics.data.gov.uk/id/local-authority/30UE,Unapportionable Central OHeads,1009,Policy & Governance,Exhibitions & Special Events,40158,Miscellaneous Expenses,5034,Stage pyrotechnics package for the Christmas lights switch on,15/12/2017,0125979,250.00,Revenue,UK Media and Events Limited,71221,,
Chorley Borough Council,http://statistics.data.gov.uk/id/local-authority/30UE,Unapportionable Central OHeads,1009,Policy & Governance,Exhibitions & Special Events,40158,Miscellaneous Expenses,5034,Presenter and snow machines for the Christmas lights switch on,15/12/2017,0125981,887.00,Revenue,UK Media and Events Limited,71221,,
Chorley Borough Council,http://statistics.data.gov.uk/id/local-authority/30UE,Unapportionable Central OHeads,1009,Customer & Digital,Service Fees,40056,Services,5027,Hybrid Mail,20/12/2017,0126265,724.54,Revenue,UKMAIL Ltd (Mail),57758,,
Chorley Borough Council,http://statistics.data.gov.uk/id/local-authority/30UE,Unapportionable Central OHeads,1009,Customer & Digital,Service Fees,40056,Services,5027,Hybrid Mail,20/12/2017,0126266,"1,076.76",Revenue,UKMAIL Ltd (Mail),57758,,
Chorley Borough Council,http://statistics.data.gov.uk/id/local-authority/30UE,Development Control,1091,Chief Executive,Consultants` Fees,40077,Services,5027,"1. An outlet village retaining and refurbishing the mill with 20,000m2 of new A1 and A3 floorspace. 2 Residential development 3.B8 ",08/12/2017,0125929,"4,889.88",Revenue,Urban Vision Partnership Ltd,21181,,
Chorley Borough Council,http://statistics.data.gov.uk/id/local-authority/30UE,Planning Policy,1092,Business Development & Growth,Professional Fees,40063,Services,5027,Urban Vision Staff - Planning work,15/12/2017,0126226,"2,263.95",Revenue,Urban Vision Partnership Ltd,21181,,
Chorley Borough Council,http://statistics.data.gov.uk/id/local-authority/30UE,Corporate Management,1008,Customer & Digital,Unitary Payment(S),50009,Private Contractors,5042,Household waste and recycling collection service including subscription garden waste collections and other ancillary services,08/12/2017,0125741,"274,640.75",Revenue,Veolia ES (UK) Ltd,20748,,
Chorley Borough Council,http://statistics.data.gov.uk/id/local-authority/30UE,Central Support Services,1009,Early Intervention,Works In Default,40199,Miscellaneous Expenses,5034,Carrying out of works to the chimney stack of ADDRESS REDACTED as works of a BA 84 Sec 76 notice.NAME REDACTED,13/12/2017,0126149,"2,674.00",Revenue,Vic Crompton,16272,,
Chorley Borough Council,http://statistics.data.gov.uk/id/local-authority/30UE,Development Control,1091,Customer & Digital,Agency Staff,13000,Direct Employee Expenses,5001,Recruitment Agency Services (Temporary Enforcement Officer: 12 October 2017 to 12 January 2018),01/12/2017,0125936,"1,224.00",Revenue,Vivid Resourcing Ltd,76938,,
Chorley Borough Council,http://statistics.data.gov.uk/id/local-authority/30UE,Development Control,1091,Customer & Digital,Agency Staff,13000,Direct Employee Expenses,5001,Recruitment Agency Services (Temporary Enforcement Officer: 12 October 2017 to 12 January 2018),13/12/2017,0126125,"1,314.00",Revenue,Vivid Resourcing Ltd,76938,,
Chorley Borough Council,http://statistics.data.gov.uk/id/local-authority/30UE,Development Control,1091,Customer & Digital,Agency Staff,13000,Direct Employee Expenses,5001,Recruitment Agency Services (Temporary Enforcement Officer: 12 October 2017 to 12 January 2018),13/12/2017,0126133,"1,314.00",Revenue,Vivid Resourcing Ltd,76938,,
Chorley Borough Council,http://statistics.data.gov.uk/id/local-authority/30UE,Development Control,1091,Customer & Digital,Agency Staff,13000,Direct Employee Expenses,5001,Recruitment Agency Services (Temporary Enforcement Officer: 12 October 2017 to 12 January 2018),13/12/2017,0126138,"1,296.00",Revenue,Vivid Resourcing Ltd,76938,,
Chorley Borough Council,http://statistics.data.gov.uk/id/local-authority/30UE,Development Control,1091,Customer & Digital,Agency Staff,13000,Direct Employee Expenses,5001,Recruitment Agency Services (Temporary Enforcement Officer: 12 October 2017 to 12 January 2018),15/12/2017,0126278,"1,305.00",Revenue,Vivid Resourcing Ltd,76938,,
Chorley Borough Council,http://statistics.data.gov.uk/id/local-authority/30UE,Democratic Represent and  Mgnt,1007,Business Development & Growth,Water - Metered Supplies,20022,Water Services,5009,astley hall,08/12/2017,0126114,519.44,Revenue,Water-plus,17926,,
Chorley Borough Council,http://statistics.data.gov.uk/id/local-authority/30UE,Unapportionable Central OHeads,1009,Policy & Governance,HR Recruitment - Advertising,15300,Indirect Employee Expenses,5002,2 Adverts on Fill My Vacancy for 199.00 each,08/12/2017,0126093,398.00,Revenue,Websense Recruit Ltd T/A Fill My Vacancy,76200,,
Chorley Borough Council,http://statistics.data.gov.uk/id/local-authority/30UE,Unapportionable Central OHeads,1009,Chief Executive,Postages,40082,Communication and Computing,5028,"Mail collection for Town Hall and Union Street, April 2017 - March 2018",20/12/2017,0126235,275.09,Revenue,Whistl North Limited,67256,,
Chorley Borough Council,http://statistics.data.gov.uk/id/local-authority/30UE,Economic Development,1096,Business Development & Growth,Miscellaneous Expenses,40200,Miscellaneous Expenses,5034,For November 2017 workshop `DIY SEO & Making the Words Work+J47,06/12/2017,0125998,300.00,Revenue,XP Web Services,68212,,
